Workbook

Sheet Sheet1
B1: D:\N10\5座\5座计算0328-2\5座计算0403 - 减墙加端柱 -加标准层\设计结果 | E1: YJK结构整体参数速校表 — design by 林霄云 2018.3.31
B2: wmass.out | E2: 9.质量比 | F2: 3.刚度比 | J2: 6.刚重比 | K2: 4.受剪承载力比 | M2: 2.周期比 | O2: 7.剪重比 | Q2: 5.位移角 | U2: 1.位移比 | W2: 8.轴压比
W3: 自 行 查 校
H4: X方向最小刚度比: | I4: Y方向最小刚度比: | O4: X向楼层最小剪重比 | P4: Y向楼层最小剪重比
A5: 说明： 点击生成按钮，将自动更新非填充区数据，及简易图表，以便于快速查阅。切换目录仅需删除B1单元格数据，注意不要修改工作表名 | H5: 1.0000(3层1塔) | I5: 1.0000(3层1塔) | O5: 0.016 | P5: 0.016 | Q5: X向最大层间位移角： 1/2161 (15层1塔) | R5: Y向最大层间位移角： 1/1373 (39层1塔) | S5: X向最大层间位移角： 1/2374 (39层1塔) | T5: Y向最大层间位移角： 1/760 (39层1塔)
B6: 层号 | C6: 层高(m) | D6: 单位面积质量 | E6: g[i] | F6: Ratx1= | G6: Raty1= | H6: Ratx2= | I6: Raty2= | J6: X向刚重比 EJd/GH**2= 7.127 | K6: Ratio_X | L6: Ratio_Y | M6: 周期 | N6: 平动系数(X+Y) | O6: X 向剪重比 | P6: Y 向剪重比 | Q6: X方向地震层间位移角 | R6: Y方向地震层间位移角 | S6: +X 方向风荷载层间位移角 | T6: +Y 方向风荷载层间位移角 | U6: X方向位移比 | V6: Y方向位移比
B7: 39 | C7: 4.35 | D7: 1305.83 | E7: 0.6 | F7: 1 | G7: 1 | H7: 1 | I7: 1 | J7: Y向刚重比 EJd/GH**2= 4.798 | K7: 1 | L7: 1 | M7: 3.0604 | N7: 1.00(0.00+1.00) | O7: 0.0844 | P7: 0.133 | Q7: =1/2664 -> 0.0003753753754 | R7: =1/1373 -> 0.0007283321194 | S7: =1/2374 -> 0.0004212299916 | T7: =1/760 -> 0.001315789474 | U7: 1.19 | V7: 1.03
B8: 38 | C8: 3.3 | D8: 2173.03 | E8: 1.66 | F8: 5.982 | G8: 5.2379 | H8: 3.5296 | I8: 3.0906 | J8: 该结构刚重比EJd/GH**2大于1.4，能够通过《高规》5.4.4条的整体稳定验算 | K8: 1.75 | L8: 4.85 | M8: 2.4392 | N8: 0.91(0.91+0.00) | O8: 0.0598 | P8: 0.08284 | Q8: =1/2759 -> 0.0003624501631 | R8: =1/1409 -> 0.0007097232079 | S8: =1/3470 -> 0.000288184438 | T8: =1/813 -> 0.0012300123 | U8: 1.16 | V8: 1.1
B9: 37 | C9: 3.15 | D9: 1800.75 | E9: 1 | F9: 2.2337 | G9: 2.1121 | H9: 1.6583 | I9: 1.5681 | J9: 该结构刚重比EJd/GH**2大于2.7，满足《高规》5.4.1，可以不考虑重力二阶效应 | K9: 1.41 | L9: 1.02 | M9: 1.3131 | N9: 0.09(0.09+0.00) | O9: 0.05284 | P9: 0.07223 | Q9: =1/2880 -> 0.0003472222222 | R9: =1/1411 -> 0.0007087172218 | S9: =1/3618 -> 0.0002763957988 | T9: =1/816 -> 0.001225490196 | U9: 1.21 | V9: 1.07
B10: 36 | C10: 3.15 | D10: 1800.1 | E10: 1 | F10: 1.6965 | G10: 1.7351 | H10: 1.3195 | I10: 1.3495 | K10: 1.02 | L10: 1.02 | M10: 0.7088 | N10: 0.88(0.88+0.00) | O10: 0.04736 | P10: 0.06386 | Q10: =1/2805 -> 0.0003565062389 | R10: =1/1405 -> 0.0007117437722 | S10: =1/3545 -> 0.0002820874471 | T10: =1/815 -> 0.001226993865
B11: 35 | C11: 3.15 | D11: 1800.1 | E11: 1 | F11: 1.5905 | G11: 1.6141 | H11: 1.2371 | I11: 1.2554 | K11: 1.02 | L11: 1.02 | M11: 0.6256 | N11: 1.00(0.00+1.00) | O11: 0.04278 | P11: 0.05681 | Q11: =1/2719 -> 0.0003677822729 | R11: =1/1400 -> 0.0007142857143 | S11: =1/3462 -> 0.0002888503755 | T11: =1/813 -> 0.0012300123
B12: 34 | C12: 3.15 | D12: 1800.1 | E12: 1 | F12: 1.5239 | G12: 1.5535 | H12: 1.1986 | I12: 1.2082 | K12: 1.02 | L12: 1.02 | M12: X向平动振型参与质量系数总计: | N12: 0.9477 | O12: 0.03904 | P12: 0.05094 | Q12: =1/2633 -> 0.0003797949107 | R12: =1/1396 -> 0.0007163323782 | S12: =1/3369 -> 0.0002968239834 | T12: =1/812 -> 0.001231527094
B13: 33 | C13: 3.15 | D13: 1800.1 | E13: 1 | F13: 1.4434 | G13: 1.4618 | H13: 1.1802 | I13: 1.184 | K13: 1.02 | L13: 1.02 | M13: Y向平动振型参与质量系数总计: | N13: 0.9543 | O13: 0.03615 | P13: 0.04614 | Q13: =1/2554 -> 0.0003915426782 | R13: =1/1394 -> 0.0007173601148 | S13: =1/3275 -> 0.0003053435115 | T13: =1/811 -> 0.001233045623
B14: 32 | C14: 3.15 | D14: 1800.1 | E14: 1 | F14: 1.404 | G14: 1.4096 | H14: 1.1708 | I14: 1.1701 | K14: 1.02 | L14: 1.02 | M14: 第1扭转周期(1.3131)/第1平动周期(3.0604) | N14: 0.43 | O14: 0.03399 | P14: 0.0422 | Q14: =1/2484 -> 0.0004025764895 | R14: =1/1393 -> 0.0007178750897 | S14: =1/3184 -> 0.0003140703518 | T14: =1/810 -> 0.001234567901
B15: 31 | C15: 3.15 | D15: 1800.1 | E15: 1.07 | F15: 1.3773 | G15: 1.3758 | H15: 1.16 | I15: 1.158 | K15: 1.02 | L15: 1.02 | O15: 0.03225 | P15: 0.03889 | Q15: =1/2407 -> 0.0004154549231 | R15: =1/1392 -> 0.0007183908046 | S15: =1/3075 -> 0.000325203252 | T15: =1/809 -> 0.001236093943
B16: 30 | C16: 3 | D16: 1683.18 | E16: 0.94 | F16: 1.4066 | G16: 1.4136 | H16: 1.1379 | I16: 1.1451 | K16: 0.95 | L16: 0.96 | O16: 0.03071 | P16: 0.03607 | Q16: =1/2335 -> 0.0004282655246 | R16: =1/1391 -> 0.000718907261 | S16: =1/2967 -> 0.0003370407819 | T16: =1/807 -> 0.001239157373
B17: 29 | C17: 3.15 | D17: 1800.75 | E17: 1.07 | F17: 1.327 | G17: 1.316 | H17: 1.1645 | I17: 1.1508 | K17: 1.09 | L17: 1.01 | O17: 0.0292 | P17: 0.03345 | Q17: =1/2329 -> 0.0004293688278 | R17: =1/1407 -> 0.000710732054 | S17: =1/2947 -> 0.0003393281303 | T17: =1/814 -> 0.001228501229
B18: 28 | C18: 3.15 | D18: 1800.1 | E18: 1 | F18: 1.3092 | G18: 1.3012 | H18: 1.1379 | I18: 1.1376 | K18: 1.02 | L18: 1 | O18: 0.02777 | P18: 0.03108 | Q18: =1/2291 -> 0.0004364906155 | R18: =1/1417 -> 0.000705716302 | S18: =1/2876 -> 0.000347705146 | T18: =1/817 -> 0.001223990208
B19: 27 | C19: 3.15 | D19: 1800.1 | E19: 1 | F19: 1.2971 | G19: 1.2908 | H19: 1.1355 | I19: 1.1347 | K19: 1.02 | L19: 1.01 | O19: 0.02645 | P19: 0.02896 | Q19: =1/2262 -> 0.000442086649 | R19: =1/1429 -> 0.000699790063 | S19: =1/2815 -> 0.0003552397869 | T19: =1/821 -> 0.001218026797
B20: 26 | C20: 3.15 | D20: 1800.1 | E20: 1 | F20: 1.3047 | G20: 1.3052 | H20: 1.1342 | I20: 1.1353 | K20: 1.01 | L20: 1.1 | O20: 0.02524 | P20: 0.02712 | Q20: =1/2239 -> 0.0004466279589 | R20: =1/1444 -> 0.0006925207756 | S20: =1/2761 -> 0.0003621876132 | T20: =1/827 -> 0.001209189843
B21: 25 | C21: 3.15 | D21: 1800.1 | E21: 1 | F21: 1.3069 | G21: 1.3087 | H21: 1.1378 | I21: 1.1389 | K21: 1.08 | L21: 1.09 | O21: 0.02416 | P21: 0.02557 | Q21: =1/2227 -> 0.0004490345757 | R21: =1/1463 -> 0.0006835269993 | S21: =1/2721 -> 0.0003675119441 | T21: =1/834 -> 0.001199040767
B22: 24 | C22: 3.15 | D22: 1800.1 | E22: 1 | F22: 1.304 | G22: 1.3157 | H22: 1.1333 | I22: 1.1424 | K22: 1.01 | L22: 1.01 | O22: 0.0232 | P22: 0.02427 | Q22: =1/2211 -> 0.0004522840344 | R22: =1/1483 -> 0.0006743088334 | S22: =1/2677 -> 0.0003735524841 | T22: =1/842 -> 0.001187648456
B23: 23 | C23: 3.15 | D23: 1800.1 | E23: 1 | F23: 1.3022 | G23: 1.3264 | H23: 1.1335 | I23: 1.1482 | K23: 1.01 | L23: 0.93 | O23: 0.02232 | P23: 0.0232 | Q23: =1/2197 -> 0.0004551661356 | R23: =1/1507 -> 0.0006635700066 | S23: =1/2637 -> 0.0003792188093 | T23: =1/852 -> 0.00117370892
B24: 22 | C24: 3.15 | D24: 1800.1 | E24: 1 | F24: 1.3018 | G24: 1.3391 | H24: 1.1345 | I24: 1.1541 | K24: 1.01 | L24: 1.01 | O24: 0.02155 | P24: 0.02233 | Q24: =1/2186 -> 0.0004574565416 | R24: =1/1533 -> 0.0006523157208 | S24: =1/2603 -> 0.0003841721091 | T24: =1/864 -> 0.001157407407
B25: 21 | C25: 3.15 | D25: 1800.1 | E25: 1 | F25: 1.3046 | G25: 1.3526 | H25: 1.1362 | I25: 1.16 | K25: 1.01 | L25: 1.01 | O25: 0.02087 | P25: 0.02162 | Q25: =1/2179 -> 0.0004589261129 | R25: =1/1563 -> 0.0006397952655 | S25: =1/2575 -> 0.0003883495146 | T25: =1/878 -> 0.001138952164
B26: 20 | C26: 3.15 | D26: 1800.1 | E26: 1 | F26: 1.3107 | G26: 1.3662 | H26: 1.1401 | I26: 1.1658 | K26: 1.07 | L26: 1.08 | O26: 0.02028 | P26: 0.02106 | Q26: =1/2180 -> 0.0004587155963 | R26: =1/1598 -> 0.0006257822278 | S26: =1/2559 -> 0.0003907776475 | T26: =1/894 -> 0.001118568233
B27: 19 | C27: 3.15 | D27: 1800.1 | E27: 1 | F27: 1.3122 | G27: 1.3782 | H27: 1.1383 | I27: 1.1703 | K27: 1.01 | L27: 1.1 | O27: 0.01976 | P27: 0.02062 | Q27: =1/2178 -> 0.0004591368228 | R27: =1/1636 -> 0.0006112469438 | S27: =1/2540 -> 0.0003937007874 | T27: =1/913 -> 0.001095290252
B28: 18 | C28: 3.15 | D28: 1800.1 | E28: 1 | F28: 1.3139 | G28: 1.3907 | H28: 1.1397 | I28: 1.1761 | K28: 1.01 | L28: 1.01 | O28: 0.01931 | P28: 0.02029 | Q28: =1/2177 -> 0.0004593477262 | R28: =1/1678 -> 0.0005959475566 | S28: =1/2526 -> 0.0003958828187 | T28: =1/934 -> 0.001070663812
B29: 17 | C29: 3.15 | D29: 1800.1 | E29: 1 | F29: 1.3173 | G29: 1.4037 | H29: 1.1423 | I29: 1.1819 | K29: 1.02 | L29: 0.92 | O29: 0.01892 | P29: 0.02005 | Q29: =1/2180 -> 0.0004587155963 | R29: =1/1726 -> 0.0005793742758 | S29: =1/2519 -> 0.0003969829297 | T29: =1/958 -> 0.001043841336
B30: 16 | C30: 3.15 | D30: 1800.1 | E30: 1.07 | F30: 1.3159 | G30: 1.4142 | H30: 1.1389 | I30: 1.1851 | K30: 1.01 | L30: 1 | O30: 0.01859 | P30: 0.01988 | Q30: =1/2173 -> 0.0004601932812 | R30: =1/1776 -> 0.0005630630631 | S30: =1/2496 -> 0.0004006410256 | T30: =1/985 -> 0.001015228426
A31: 注： 保存至temp工作表，可以在dif工作表中查看变化 | B31: 15 | C31: 3 | D31: 1683.18 | E31: 0.94 | F31: 1.3755 | G31: 1.4936 | H31: 1.1352 | I31: 1.1881 | K31: 0.99 | L31: 1.01 | O31: 0.0183 | P31: 0.01978 | Q31: =1/2161 -> 0.0004627487274 | R31: =1/1833 -> 0.000545553737 | S31: =1/2468 -> 0.0004051863857 | T31: =1/1015 -> 0.0009852216749
B32: 14 | C32: 3.15 | D32: 1824.03 | E32: 1.08 | F32: 1.334 | G32: 1.435 | H32: 1.1794 | I32: 1.2169 | K32: 1.06 | L32: 1.21 | O32: 0.01805 | P32: 0.01974 | Q32: =1/2232 -> 0.0004480286738 | R32: =1/1933 -> 0.0005173305742 | S32: =1/2565 -> 0.0003898635478 | T32: =1/1070 -> 0.0009345794393
B33: 13 | C33: 3.15 | D33: 1823.21 | E33: 1 | F33: 1.3419 | G33: 1.4444 | H33: 1.1575 | I33: 1.2037 | K33: 1.02 | L33: 1 | O33: 0.01784 | P33: 0.01974 | Q33: =1/2259 -> 0.0004426737494 | R33: =1/2014 -> 0.0004965243297 | S33: =1/2596 -> 0.0003852080123 | T33: =1/1116 -> 0.0008960573477
B34: 12 | C34: 3.15 | D34: 1823.21 | E34: 1 | F34: 1.3481 | G34: 1.4537 | H34: 1.1621 | I34: 1.2095 | K34: 1.01 | L34: 1 | O34: 0.01767 | P34: 0.01976 | Q34: =1/2297 -> 0.0004353504571 | R34: =1/2110 -> 0.0004739336493 | S34: =1/2641 -> 0.0003786444529 | T34: =1/1170 -> 0.0008547008547
B35: 11 | C35: 3.15 | D35: 1823.21 | E35: 1 | F35: 1.369 | G35: 1.483 | H35: 1.1657 | I35: 1.2157 | K35: 1.01 | L35: 1 | O35: 0.01751 | P35: 0.01979 | Q35: =1/2344 -> 0.0004266211604 | R35: =1/2223 -> 0.0004498425551 | S35: =1/2699 -> 0.0003705075954 | T35: =1/1235 -> 0.0008097165992
B36: 10 | C36: 3.15 | D36: 1823.21 | E36: 1 | F36: 1.3829 | G36: 1.4982 | H36: 1.1737 | I36: 1.2224 | K36: 1.05 | L36: 0.97 | O36: 0.01739 | P36: 0.01981 | Q36: =1/2410 -> 0.0004149377593 | R36: =1/2358 -> 0.0004240882103 | S36: =1/2781 -> 0.0003595828839 | T36: =1/1313 -> 0.000761614623
B37: 9 | C37: 3.15 | D37: 1823.21 | E37: 1 | F37: 1.3919 | G37: 1.5123 | H37: 1.175 | I37: 1.2276 | K37: 1.01 | L37: 1 | O37: 0.01728 | P37: 0.01982 | Q37: =1/2484 -> 0.0004025764895 | R37: =1/2516 -> 0.0003974562798 | S37: =1/2873 -> 0.0003480682214 | T37: =1/1406 -> 0.0007112375533
B38: 8 | C38: 3.15 | D38: 1823.21 | E38: 1 | F38: 1.405 | G38: 1.5311 | H38: 1.1827 | I38: 1.2375 | K38: 1.01 | L38: 1 | O38: 0.01718 | P38: 0.01982 | Q38: =1/2582 -> 0.0003872966692 | R38: =1/2713 -> 0.0003685956506 | S38: =1/2993 -> 0.0003341129302 | T38: =1/1522 -> 0.0006570302234
B39: 7 | C39: 3.15 | D39: 1823.21 | E39: 1 | F39: 1.4247 | G39: 1.5581 | H39: 1.1938 | I39: 1.2514 | K39: 1 | L39: 1.04 | O39: 0.01706 | P39: 0.0198 | Q39: =1/2714 -> 0.0003684598379 | R39: =1/2963 -> 0.0003374957813 | S39: =1/3153 -> 0.000317158262 | T39: =1/1671 -> 0.0005984440455
B40: 6 | C40: 3.15 | D40: 1823.21 | E40: 1 | F40: 1.4572 | G40: 1.5985 | H40: 1.2111 | I40: 1.2717 | K40: 1.01 | L40: 1.05 | O40: 0.01694 | P40: 0.01974 | Q40: =1/2902 -> 0.000344589938 | R40: =1/3298 -> 0.0003032140691 | S40: =1/3378 -> 0.0002960331557 | T40: =1/1871 -> 0.0005344735436
B41: 5 | C41: 3.15 | D41: 1823.21 | E41: 1 | F41: 1.5089 | G41: 1.6608 | H41: 1.239 | I41: 1.3037 | K41: 1.05 | L41: 1 | O41: 0.01679 | P41: 0.01964 | Q41: =1/3182 -> 0.0003142677561 | R41: =1/3773 -> 0.0002650410814 | S41: =1/3710 -> 0.000269541779 | T41: =1/2048 -> 0.00048828125
B42: 4 | C42: 3.15 | D42: 1823.21 | E42: 1 | F42: 1.6466 | G42: 1.7724 | H42: 1.3268 | I42: 1.3785 | K42: 1.1 | L42: 0.94 | O42: 0.0166 | P42: 0.01949 | Q42: =1/3722 -> 0.0002686727566 | R42: =1/4573 -> 0.0002186748305 | S42: =1/4350 -> 0.0002298850575 | T42: =1/2432 -> 0.0004111842105
B43: 3 | C43: 6.45 | D43: 3090.35 | E43: 1.7 | F43: 1.0363 | G43: 1.0851 | H43: 1.6503 | I43: 1.7281 | K43: 1.09 | L43: 1.15 | O43: 0.01627 | P43: 0.01924 | Q43: =1/5224 -> 0.000191424196 | R43: =1/6873 -> 0.0001454968718 | S43: =1/6090 -> 0.0001642036125 | T43: =1/3899 -> 0.0002564760195
B44: 2 | C44: 4.6 | D44: 2798.82 | E44: 1.8 | F44: 6.694 | G44: 3.6196 | H44: 4.9976 | I44: 2.5835 | K44: 2.2 | L44: 1.21 | O44: 0.01535 | P44: 0.0184 | Q44: =1/9999 -> 0.000100010001 | R44: =1/9999 -> 0.000100010001 | S44: =1/9999 -> 0.000100010001 | T44: =1/7677 -> 0.0001302592158
B45: 1 | C45: 3.7 | D45: 1550.94 | E45: 0.55 | F45: 3.9731 | G45: 4.945 | H45: 1.4914 | I45: 1.8562 | K45: 1.15 | L45: 1.12 | O45: 0.01457 | P45: 0.01746 | Q45: =1/9999 -> 0.000100010001 | R45: =1/9999 -> 0.000100010001 | S45: =1/9999 -> 0.000100010001 | T45: =1/9999 -> 0.000100010001
C46: =SUM($C$7:$C$45) -> 129.2 | D46: 1305.83 | F46: 1 | G46: 1 | H46: 1 | I46: 1 | K46: 0.95 | L46: 0.92 | O46: 0.01457 | P46: 0.01746 | Q46: 0.000100010001 | R46: 0.000100010001 | S46: 0.000100010001 | T46: 0.000100010001
D47: 3090.35 | F47: 6.694 | G47: 5.2379 | H47: 4.9976 | I47: 3.0906 | K47: 2.2 | L47: 4.85 | O47: 0.0844 | P47: 0.133 | Q47: 0.0004627487274 | R47: 0.0007283321194 | S47: 0.0004212299916 | T47: 0.001315789474

Sheet ref
A1: 限值1 | B1: 限值0.8 | C1: 抗震规范(5.2.5)条要求的X向楼层最小剪重比 = 1.60 | D1: 抗震规范(5.2.5)条要求的Y向楼层最小剪重比 = 1.60
A7: 1 | B7: 0.8 | C7: 0.016 | D7: 0.016
A8: 1 | B8: 0.8 | C8: 0.016 | D8: 0.016
A9: 1 | B9: 0.8 | C9: 0.016 | D9: 0.016
A10: 1 | B10: 0.8 | C10: 0.016 | D10: 0.016
A11: 1 | B11: 0.8 | C11: 0.016 | D11: 0.016
A12: 1 | B12: 0.8 | C12: 0.016 | D12: 0.016
A13: 1 | B13: 0.8 | C13: 0.016 | D13: 0.016
A14: 1 | B14: 0.8 | C14: 0.016 | D14: 0.016
A15: 1 | B15: 0.8 | C15: 0.016 | D15: 0.016
A16: 1 | B16: 0.8 | C16: 0.016 | D16: 0.016
A17: 1 | B17: 0.8 | C17: 0.016 | D17: 0.016
A18: 1 | B18: 0.8 | C18: 0.016 | D18: 0.016
A19: 1 | B19: 0.8 | C19: 0.016 | D19: 0.016
A20: 1 | B20: 0.8 | C20: 0.016 | D20: 0.016
A21: 1 | B21: 0.8 | C21: 0.016 | D21: 0.016
A22: 1 | B22: 0.8 | C22: 0.016 | D22: 0.016
A23: 1 | B23: 0.8 | C23: 0.016 | D23: 0.016
A24: 1 | B24: 0.8 | C24: 0.016 | D24: 0.016
A25: 1 | B25: 0.8 | C25: 0.016 | D25: 0.016
A26: 1 | B26: 0.8 | C26: 0.016 | D26: 0.016
A27: 1 | B27: 0.8 | C27: 0.016 | D27: 0.016
A28: 1 | B28: 0.8 | C28: 0.016 | D28: 0.016
A29: 1 | B29: 0.8 | C29: 0.016 | D29: 0.016
A30: 1 | B30: 0.8 | C30: 0.016 | D30: 0.016
A31: 1 | B31: 0.8 | C31: 0.016 | D31: 0.016
A32: 1 | B32: 0.8 | C32: 0.016 | D32: 0.016
A33: 1 | B33: 0.8 | C33: 0.016 | D33: 0.016
A34: 1 | B34: 0.8 | C34: 0.016 | D34: 0.016
A35: 1 | B35: 0.8 | C35: 0.016 | D35: 0.016
A36: 1 | B36: 0.8 | C36: 0.016 | D36: 0.016
A37: 1 | B37: 0.8 | C37: 0.016 | D37: 0.016
A38: 1 | B38: 0.8 | C38: 0.016 | D38: 0.016
A39: 1 | B39: 0.8 | C39: 0.016 | D39: 0.016
A40: 1 | B40: 0.8 | C40: 0.016 | D40: 0.016
C41: 0.016 | D41: 0.016
C42: 0.016 | D42: 0.016
C43: 0.016 | D43: 0.016
C44: 0.016 | D44: 0.016
C45: 0.016 | D45: 0.016

Sheet temp
B1: D:\N10\5座\5座计算0328-2\5座计算0403 - 减墙加端柱 -加标准层 - lt250\设计结果 | E1: YJK结构整体参数速校表 — design by 林霄云 2018.3.31
B2: wmass.out | E2: 9.质量比 | F2: 3.刚度比 | J2: 6.刚重比 | K2: 4.受剪承载力比 | M2: 2.周期比 | O2: 7.剪重比 | Q2: 5.位移角 | U2: 1.位移比
H4: X方向最小刚度比: | I4: Y方向最小刚度比: | O4: X向楼层最小剪重比 | P4: Y向楼层最小剪重比
A5: 说明： 点击生成按钮，将自动更新非填充区数据，及简易图表，以便于快速查阅。切换目录仅需删除B1单元格数据，注意不要修改工作表名，保存至temp工作表，可以在dif工作表中查看变化 | H5: 1.0000(3层1塔) | I5: 1.0000(3层1塔) | O5: 0.016 | P5: 0.016 | Q5: X向最大层间位移角： 1/2164 (15层1塔) | R5: Y向最大层间位移角： 1/1360 (39层1塔) | S5: X向最大层间位移角： 1/2374 (39层1塔) | T5: Y向最大层间位移角： 1/751 (39层1塔)
B6: 层号 | C6: 层高(m) | D6: 单位面积质量 | E6: g[i] | F6: Ratx1= | G6: Raty1= | H6: Ratx2= | I6: Raty2= | J6: X向刚重比 EJd/GH**2= 7.112 | K6: Ratio_X | L6: Ratio_Y | M6: 周期 | N6: 平动系数(X+Y) | O6: X 向剪重比 | P6: Y 向剪重比 | Q6: X方向地震层间位移角 | R6: Y方向地震层间位移角 | S6: +X 方向风荷载层间位移角 | T6: +Y 方向风荷载层间位移角 | U6: X方向位移比 | V6: Y方向位移比
B7: 39 | C7: 4.35 | D7: 1305.83 | E7: 0.6 | F7: 1 | G7: 1 | H7: 1 | I7: 1 | J7: Y向刚重比 EJd/GH**2= 4.764 | K7: 1 | L7: 1 | M7: 3.0719 | N7: 1.00(0.00+1.00) | O7: 0.08444 | P7: 0.13319 | Q7: =1/2666 -> 0.0003750937734 | R7: =1/1360 -> 0.0007352941176 | S7: =1/2374 -> 0.0004212299916 | T7: =1/751 -> 0.001331557923 | U7: 1.18 | V7: 1.03
B8: 38 | C8: 3.3 | D8: 2173.03 | E8: 1.66 | F8: 6.0307 | G8: 5.2286 | H8: 3.5584 | I8: 3.0851 | J8: 该结构刚重比EJd/GH**2大于1.4，能够通过《高规》5.4.4条的整体稳定验算 | K8: 1.75 | L8: 4.85 | M8: 2.4385 | N8: 0.91(0.91+0.00) | O8: 0.0598 | P8: 0.0828 | Q8: =1/2761 -> 0.0003621876132 | R8: =1/1396 -> 0.0007163323782 | S8: =1/3474 -> 0.0002878526195 | T8: =1/803 -> 0.001245330012 | U8: 1.16 | V8: 1.11
B9: 37 | C9: 3.15 | D9: 1796.81 | E9: 1 | F9: 2.2476 | G9: 2.1105 | H9: 1.6687 | I9: 1.5669 | J9: 该结构刚重比EJd/GH**2大于2.7，满足《高规》5.4.1，可以不考虑重力二阶效应 | K9: 1.38 | L9: 1.02 | M9: 1.3284 | N9: 0.09(0.09+0.00) | O9: 0.05296 | P9: 0.0722 | Q9: =1/2891 -> 0.0003459010723 | R9: =1/1398 -> 0.0007153075823 | S9: =1/3628 -> 0.0002756339581 | T9: =1/806 -> 0.001240694789 | U9: 1.21 | V9: 1.07
B10: 36 | C10: 3.15 | D10: 1796.15 | E10: 1 | F10: 1.6985 | G10: 1.7342 | H10: 1.321 | I10: 1.3489 | K10: 1.02 | L10: 1.02 | M10: 0.71 | N10: 0.88(0.88+0.00) | O10: 0.04752 | P10: 0.06382 | Q10: =1/2815 -> 0.0003552397869 | R10: =1/1392 -> 0.0007183908046 | S10: =1/3555 -> 0.0002812939522 | T10: =1/805 -> 0.001242236025
B11: 35 | C11: 3.15 | D11: 1796.15 | E11: 1 | F11: 1.5897 | G11: 1.6135 | H11: 1.2364 | I11: 1.2549 | K11: 1.02 | L11: 1.02 | M11: 0.6273 | N11: 1.00(0.00+1.00) | O11: 0.04294 | P11: 0.05676 | Q11: =1/2728 -> 0.000366568915 | R11: =1/1387 -> 0.0007209805335 | S11: =1/3471 -> 0.0002881014117 | T11: =1/803 -> 0.001245330012
B12: 34 | C12: 3.15 | D12: 1796.15 | E12: 1 | F12: 1.5223 | G12: 1.5529 | H12: 1.1973 | I12: 1.2078 | K12: 1.02 | L12: 1.02 | M12: X向平动振型参与质量系数总计: | N12: 0.9445 | O12: 0.03918 | P12: 0.05088 | Q12: =1/2641 -> 0.0003786444529 | R12: =1/1384 -> 0.0007225433526 | S12: =1/3376 -> 0.0002962085308 | T12: =1/802 -> 0.001246882793
B13: 33 | C13: 3.15 | D13: 1796.15 | E13: 1 | F13: 1.4407 | G13: 1.4609 | H13: 1.179 | I13: 1.1837 | K13: 1.02 | L13: 1.02 | M13: Y向平动振型参与质量系数总计: | N13: 0.9542 | O13: 0.03629 | P13: 0.04607 | Q13: =1/2560 -> 0.000390625 | R13: =1/1381 -> 0.0007241129616 | S13: =1/3281 -> 0.0003047851265 | T13: =1/801 -> 0.001248439451
B14: 32 | C14: 3.15 | D14: 1796.15 | E14: 1 | F14: 1.4014 | G14: 1.4091 | H14: 1.1697 | I14: 1.1699 | K14: 1.02 | L14: 1.02 | M14: 第1扭转周期(1.3284)/第1平动周期(3.0719) | N14: 0.43 | O14: 0.03412 | P14: 0.04213 | Q14: =1/2489 -> 0.0004017677782 | R14: =1/1381 -> 0.0007241129616 | S14: =1/3189 -> 0.0003135779241 | T14: =1/800 -> 0.00125
B15: 31 | C15: 3.15 | D15: 1796.15 | E15: 1.07 | F15: 1.3744 | G15: 1.3756 | H15: 1.1587 | I15: 1.158 | K15: 1.03 | L15: 1.02 | O15: 0.03236 | P15: 0.03882 | Q15: =1/2411 -> 0.0004147656574 | R15: =1/1381 -> 0.0007241129616 | S15: =1/3079 -> 0.000324780773 | T15: =1/799 -> 0.001251564456
B16: 30 | C16: 3 | D16: 1681.34 | E16: 0.94 | F16: 1.404 | G16: 1.4135 | H16: 1.1371 | I16: 1.1451 | K16: 0.94 | L16: 0.97 | O16: 0.03079 | P16: 0.036 | Q16: =1/2338 -> 0.0004277159966 | R16: =1/1380 -> 0.0007246376812 | S16: =1/2970 -> 0.0003367003367 | T16: =1/798 -> 0.001253132832
B17: 29 | C17: 3.15 | D17: 1796.81 | E17: 1.07 | F17: 1.3252 | G17: 1.3157 | H17: 1.164 | I17: 1.1506 | K17: 1.09 | L17: 1.01 | O17: 0.02926 | P17: 0.03338 | Q17: =1/2332 -> 0.0004288164666 | R17: =1/1395 -> 0.0007168458781 | S17: =1/2951 -> 0.0003388681803 | T17: =1/804 -> 0.001243781095
B18: 28 | C18: 3.15 | D18: 1796.15 | E18: 1 | F18: 1.3078 | G18: 1.3012 | H18: 1.1374 | I18: 1.1378 | K18: 1.02 | L18: 1.01 | O18: 0.02782 | P18: 0.03102 | Q18: =1/2294 -> 0.0004359197908 | R18: =1/1405 -> 0.0007117437722 | S18: =1/2879 -> 0.0003473428274 | T18: =1/807 -> 0.001239157373
B19: 27 | C19: 3.15 | D19: 1796.15 | E19: 1 | F19: 1.2959 | G19: 1.291 | H19: 1.1351 | I19: 1.1349 | K19: 1.02 | L19: 1.01 | O19: 0.02648 | P19: 0.02891 | Q19: =1/2265 -> 0.0004415011038 | R19: =1/1418 -> 0.0007052186178 | S19: =1/2819 -> 0.0003547357219 | T19: =1/812 -> 0.001231527094
B20: 26 | C20: 3.15 | D20: 1796.15 | E20: 1 | F20: 1.3037 | G20: 1.3057 | H20: 1.1338 | I20: 1.1355 | K20: 1.02 | L20: 1.09 | O20: 0.02526 | P20: 0.02707 | Q20: =1/2241 -> 0.0004462293619 | R20: =1/1433 -> 0.0006978367062 | S20: =1/2764 -> 0.0003617945007 | T20: =1/817 -> 0.001223990208
B21: 25 | C21: 3.15 | D21: 1796.15 | E21: 1 | F21: 1.3063 | G21: 1.3092 | H21: 1.1376 | I21: 1.1391 | K21: 1.08 | L21: 1.09 | O21: 0.02418 | P21: 0.02552 | Q21: =1/2230 -> 0.0004484304933 | R21: =1/1452 -> 0.0006887052342 | S21: =1/2725 -> 0.0003669724771 | T21: =1/825 -> 0.001212121212
B22: 24 | C22: 3.15 | D22: 1796.15 | E22: 1 | F22: 1.3036 | G22: 1.3164 | H22: 1.1332 | I22: 1.1428 | K22: 1.01 | L22: 1.01 | O22: 0.02322 | P22: 0.02423 | Q22: =1/2213 -> 0.0004518752824 | R22: =1/1472 -> 0.0006793478261 | S22: =1/2681 -> 0.0003729951511 | T22: =1/833 -> 0.001200480192
B23: 23 | C23: 3.15 | D23: 1796.15 | E23: 1 | F23: 1.3019 | G23: 1.3273 | H23: 1.1334 | I23: 1.1486 | K23: 1.01 | L23: 0.93 | O23: 0.02234 | P23: 0.02317 | Q23: =1/2199 -> 0.0004547521601 | R23: =1/1495 -> 0.0006688963211 | S23: =1/2641 -> 0.0003786444529 | T23: =1/843 -> 0.00118623962
B24: 22 | C24: 3.15 | D24: 1796.15 | E24: 1 | F24: 1.3015 | G24: 1.34 | H24: 1.1344 | I24: 1.1546 | K24: 1.01 | L24: 1.01 | O24: 0.02156 | P24: 0.0223 | Q24: =1/2189 -> 0.0004568296026 | R24: =1/1522 -> 0.0006570302234 | S24: =1/2606 -> 0.0003837298542 | T24: =1/854 -> 0.001170960187
B25: 21 | C25: 3.15 | D25: 1796.15 | E25: 1 | F25: 1.3044 | G25: 1.3536 | H25: 1.1362 | I25: 1.1604 | K25: 1.01 | L25: 1.01 | O25: 0.02089 | P25: 0.0216 | Q25: =1/2182 -> 0.0004582951421 | R25: =1/1552 -> 0.0006443298969 | S25: =1/2578 -> 0.000387897595 | T25: =1/868 -> 0.001152073733
B26: 20 | C26: 3.15 | D26: 1796.15 | E26: 1 | F26: 1.3108 | G26: 1.3672 | H26: 1.1402 | I26: 1.1662 | K26: 1.07 | L26: 1.08 | O26: 0.0203 | P26: 0.02104 | Q26: =1/2183 -> 0.0004580852038 | R26: =1/1587 -> 0.0006301197227 | S26: =1/2562 -> 0.0003903200625 | T26: =1/885 -> 0.001129943503
B27: 19 | C27: 3.15 | D27: 1796.15 | E27: 1 | F27: 1.3123 | G27: 1.3791 | H27: 1.1383 | I27: 1.1707 | K27: 1.01 | L27: 1.1 | O27: 0.01978 | P27: 0.02061 | Q27: =1/2181 -> 0.0004585052728 | R27: =1/1625 -> 0.0006153846154 | S27: =1/2544 -> 0.000393081761 | T27: =1/903 -> 0.001107419712
B28: 18 | C28: 3.15 | D28: 1796.15 | E28: 1 | F28: 1.3139 | G28: 1.3917 | H28: 1.1396 | I28: 1.1766 | K28: 1.01 | L28: 1.01 | O28: 0.01933 | P28: 0.02028 | Q28: =1/2180 -> 0.0004587155963 | R28: =1/1668 -> 0.0005995203837 | S28: =1/2530 -> 0.000395256917 | T28: =1/925 -> 0.001081081081
B29: 17 | C29: 3.15 | D29: 1796.15 | E29: 1 | F29: 1.3171 | G29: 1.4048 | H29: 1.1421 | I29: 1.1824 | K29: 1.02 | L29: 0.92 | O29: 0.01895 | P29: 0.02004 | Q29: =1/2182 -> 0.0004582951421 | R29: =1/1716 -> 0.0005827505828 | S29: =1/2522 -> 0.0003965107058 | T29: =1/949 -> 0.00105374078
B30: 16 | C30: 3.15 | D30: 1796.15 | E30: 1.07 | F30: 1.3153 | G30: 1.4157 | H30: 1.1385 | I30: 1.1859 | K30: 1.01 | L30: 1 | O30: 0.01861 | P30: 0.01987 | Q30: =1/2175 -> 0.0004597701149 | R30: =1/1767 -> 0.0005659309564 | S30: =1/2499 -> 0.000400160064 | T30: =1/976 -> 0.001024590164
B31: 15 | C31: 3 | D31: 1681.34 | E31: 0.94 | F31: 1.3755 | G31: 1.4942 | H31: 1.1355 | I31: 1.1879 | K31: 0.99 | L31: 1.01 | O31: 0.01832 | P31: 0.01977 | Q31: =1/2164 -> 0.0004621072089 | R31: =1/1823 -> 0.0005485463522 | S31: =1/2472 -> 0.0004045307443 | T31: =1/1006 -> 0.0009940357853
B32: 14 | C32: 3.15 | D32: 1820.09 | E32: 1.08 | F32: 1.3328 | G32: 1.4345 | H32: 1.1782 | I32: 1.2163 | K32: 1.07 | L32: 1.21 | O32: 0.01807 | P32: 0.01973 | Q32: =1/2234 -> 0.0004476275739 | R32: =1/1922 -> 0.0005202913632 | S32: =1/2567 -> 0.0003895597974 | T32: =1/1060 -> 0.0009433962264
B33: 13 | C33: 3.15 | D33: 1819.27 | E33: 1 | F33: 1.3402 | G33: 1.445 | H33: 1.1567 | I33: 1.2046 | K33: 1.02 | L33: 1 | O33: 0.01786 | P33: 0.01973 | Q33: =1/2261 -> 0.000442282176 | R33: =1/2004 -> 0.000499001996 | S33: =1/2597 -> 0.0003850596843 | T33: =1/1106 -> 0.000904159132
B34: 12 | C34: 3.15 | D34: 1819.27 | E34: 1 | F34: 1.346 | G34: 1.4549 | H34: 1.1612 | I34: 1.2101 | K34: 1.01 | L34: 1 | O34: 0.01768 | P34: 0.01975 | Q34: =1/2298 -> 0.0004351610096 | R34: =1/2100 -> 0.0004761904762 | S34: =1/2641 -> 0.0003786444529 | T34: =1/1160 -> 0.0008620689655
B35: 11 | C35: 3.15 | D35: 1819.27 | E35: 1 | F35: 1.3667 | G35: 1.4847 | H35: 1.1646 | I35: 1.2164 | K35: 1.01 | L35: 1 | O35: 0.01751 | P35: 0.01977 | Q35: =1/2344 -> 0.0004266211604 | R35: =1/2214 -> 0.0004516711834 | S35: =1/2697 -> 0.0003707823508 | T35: =1/1225 -> 0.0008163265306
B36: 10 | C36: 3.15 | D36: 1819.27 | E36: 1 | F36: 1.3803 | G36: 1.4999 | H36: 1.1725 | I36: 1.2231 | K36: 1.05 | L36: 0.97 | O36: 0.01738 | P36: 0.0198 | Q36: =1/2410 -> 0.0004149377593 | R36: =1/2350 -> 0.0004255319149 | S36: =1/2778 -> 0.0003599712023 | T36: =1/1304 -> 0.0007668711656
B37: 9 | C37: 3.15 | D37: 1819.27 | E37: 1 | F37: 1.3889 | G37: 1.5141 | H37: 1.1736 | I37: 1.2285 | K37: 1.01 | L37: 1 | O37: 0.01727 | P37: 0.01981 | Q37: =1/2483 -> 0.0004027386226 | R37: =1/2509 -> 0.0003985651654 | S37: =1/2868 -> 0.0003486750349 | T37: =1/1397 -> 0.0007158196135
B38: 8 | C38: 3.15 | D38: 1819.27 | E38: 1 | F38: 1.4016 | G38: 1.5332 | H38: 1.1811 | I38: 1.2385 | K38: 1.01 | L38: 1 | O38: 0.01716 | P38: 0.01981 | Q38: =1/2578 -> 0.000387897595 | R38: =1/2707 -> 0.0003694126339 | S38: =1/2985 -> 0.0003350083752 | T38: =1/1514 -> 0.0006605019815
B39: 7 | C39: 3.15 | D39: 1819.27 | E39: 1 | F39: 1.421 | G39: 1.5606 | H39: 1.1921 | I39: 1.2525 | K39: 1 | L39: 1 | O39: 0.01703 | P39: 0.01979 | Q39: =1/2708 -> 0.0003692762186 | R39: =1/2960 -> 0.0003378378378 | S39: =1/3142 -> 0.0003182686187 | T39: =1/1664 -> 0.0006009615385
B40: 6 | C40: 3.15 | D40: 1819.27 | E40: 1 | F40: 1.4533 | G40: 1.6012 | H40: 1.2095 | I40: 1.273 | K40: 1.01 | L40: 1 | O40: 0.01691 | P40: 0.01973 | Q40: =1/2893 -> 0.0003456619426 | R40: =1/3297 -> 0.0003033060358 | S40: =1/3362 -> 0.0002974419988 | T40: =1/1864 -> 0.0005364806867
B41: 5 | C41: 3.15 | D41: 1819.27 | E41: 1 | F41: 1.5055 | G41: 1.6645 | H41: 1.2378 | I41: 1.3056 | K41: 1.04 | L41: 1.1 | O41: 0.01675 | P41: 0.01963 | Q41: =1/3170 -> 0.0003154574132 | R41: =1/3776 -> 0.0002648305085 | S41: =1/3690 -> 0.00027100271 | T41: =1/2094 -> 0.0004775549188
B42: 4 | C42: 3.15 | D42: 1819.27 | E42: 1 | F42: 1.6471 | G42: 1.7732 | H42: 1.3285 | I42: 1.3792 | K42: 1.11 | L42: 0.89 | O42: 0.01656 | P42: 0.01948 | Q42: =1/3713 -> 0.0002693239968 | R42: =1/4579 -> 0.0002183882944 | S42: =1/4335 -> 0.0002306805075 | T42: =1/2494 -> 0.0004009623095
B43: 3 | C43: 6.45 | D43: 3090.35 | E43: 1.7 | F43: 1.0454 | G43: 1.0836 | H43: 1.665 | I43: 1.7257 | K43: 1.1 | L43: 1.2 | O43: 0.01623 | P43: 0.01923 | Q43: =1/5242 -> 0.0001907668829 | R43: =1/6872 -> 0.0001455180442 | S43: =1/6107 -> 0.0001637465204 | T43: =1/3887 -> 0.0002572678158
B44: 2 | C44: 4.6 | D44: 2798.82 | E44: 1.8 | F44: 6.7589 | G44: 3.6256 | H44: 5.0122 | I44: 2.5899 | K44: 2.2 | L44: 1.22 | O44: 0.0153 | P44: 0.01839 | Q44: =1/9999 -> 0.000100010001 | R44: =1/9999 -> 0.000100010001 | S44: =1/9999 -> 0.000100010001 | T44: =1/7671 -> 0.0001303611002
B45: 1 | C45: 3.7 | D45: 1550.94 | E45: 0.55 | F45: 3.9687 | G45: 4.9446 | H45: 1.4897 | I45: 1.856 | K45: 1.15 | L45: 1.12 | O45: 0.01451 | P45: 0.01745 | Q45: =1/9999 -> 0.000100010001 | R45: =1/9999 -> 0.000100010001 | S45: =1/9999 -> 0.000100010001 | T45: =1/9999 -> 0.000100010001
C46: =SUM($C$7:$C$45) -> 129.2 | D46: 1305.83 | F46: 1 | G46: 1 | H46: 1 | I46: 1 | K46: 0.94 | L46: 0.89 | O46: 0.01451 | P46: 0.01745 | Q46: 0.000100010001 | R46: 0.000100010001 | S46: 0.000100010001 | T46: 0.000100010001
D47: 3090.35 | F47: 6.7589 | G47: 5.2286 | H47: 5.0122 | I47: 3.0851 | K47: 2.2 | L47: 4.85 | O47: 0.08444 | P47: 0.13319 | Q47: 0.0004621072089 | R47: 0.0007352941176 | S47: 0.0004212299916 | T47: 0.001331557923

Sheet dif
E1: YJK结构整体参数速校表 — design by 林霄云 2018.3.31
B2: wmass.out | E2: 9.质量比 | F2: 3.刚度比 | J2: 6.刚重比 | K2: 4.受剪承载力比 | M2: 2.周期比 | O2: 7.剪重比 | Q2: 5.位移角 | U2: 1.位移比 | W2: 8.轴压比
Q3: 注：位移角差值为分母的变化值
B6: 层号 | C6: 层高(m) | D6: 单位面积质量 | E6: g[i] | F6: Ratx1= | G6: Raty1= | H6: Ratx2= | I6: Raty2= | J6: X向刚重比 EJd/GH**2= 3.269 | K6: Ratio_X | L6: Ratio_Y | M6: 周期 | N6: 平动系数(X+Y) | O6: X 向剪重比 | P6: Y 向剪重比 | Q6: X方向地震层间位移角 | R6: Y方向地震层间位移角 | S6: +X 方向风荷载层间位移角 | T6: +Y 方向风荷载层间位移角 | U6: X方向位移比 | V6: Y方向位移比
B7: =IF(Sheet1!B7=temp!B7,"",Sheet1!B7-temp!B7) ->  | C7: =IF(Sheet1!C7=temp!C7,"",Sheet1!C7-temp!C7) ->  | D7: =IF(Sheet1!D7=temp!D7,"",Sheet1!D7-temp!D7) ->  | E7: =IF(Sheet1!E7=temp!E7,"",Sheet1!E7-temp!E7) ->  | F7: =IF(Sheet1!F7=temp!F7,"",Sheet1!F7-temp!F7) ->  | G7: =IF(Sheet1!G7=temp!G7,"",Sheet1!G7-temp!G7) ->  | H7: =IF(Sheet1!H7=temp!H7,"",Sheet1!H7-temp!H7) ->  | I7: =IF(Sheet1!I7=temp!I7,"",Sheet1!I7-temp!I7) ->  | J7: =IF(Sheet1!J7=temp!J7,"",Sheet1!J7-temp!J7) ->  | K7: =IF(Sheet1!K7=temp!K7,"",Sheet1!K7-temp!K7) ->  | L7: =IF(Sheet1!L7=temp!L7,"",Sheet1!L7-temp!L7) ->  | M7: =IF(Sheet1!M7=temp!M7,"",Sheet1!M7-temp!M7) -> -0.0115 | N7: =IF(Sheet1!N7=temp!N7,"",Sheet1!N7-temp!N7) ->  | O7: =IF(Sheet1!O7=temp!O7,"",Sheet1!O7-temp!O7) -> -4e-05 | P7: =IF(Sheet1!P7=temp!P7,"",Sheet1!P7-temp!P7) -> -0.00019 | Q7: =IF(Sheet1!Q7=temp!Q7,"",1/Sheet1!Q7-1/temp!Q7) -> -2 | R7: =IF(Sheet1!R7=temp!R7,"",1/Sheet1!R7-1/temp!R7) -> 13 | S7: =IF(Sheet1!S7=temp!S7,"",1/Sheet1!S7-1/temp!S7) ->  | T7: =IF(Sheet1!T7=temp!T7,"",1/Sheet1!T7-1/temp!T7) -> 9 | U7: =IF(Sheet1!U7=temp!U7,"",Sheet1!U7-temp!U7) -> 0.01 | V7: =IF(Sheet1!V7=temp!V7,"",Sheet1!V7-temp!V7) -> 
B8: =IF(Sheet1!B8=temp!B8,"",Sheet1!B8-temp!B8) ->  | C8: =IF(Sheet1!C8=temp!C8,"",Sheet1!C8-temp!C8) ->  | D8: =IF(Sheet1!D8=temp!D8,"",Sheet1!D8-temp!D8) ->  | E8: =IF(Sheet1!E8=temp!E8,"",Sheet1!E8-temp!E8) ->  | F8: =IF(Sheet1!F8=temp!F8,"",Sheet1!F8-temp!F8) -> -0.0487 | G8: =IF(Sheet1!G8=temp!G8,"",Sheet1!G8-temp!G8) -> 0.0093 | H8: =IF(Sheet1!H8=temp!H8,"",Sheet1!H8-temp!H8) -> -0.0288 | I8: =IF(Sheet1!I8=temp!I8,"",Sheet1!I8-temp!I8) -> 0.0055 | J8: =IF(Sheet1!J8=temp!J8,"",Sheet1!J8-temp!J8) ->  | K8: =IF(Sheet1!K8=temp!K8,"",Sheet1!K8-temp!K8) ->  | L8: =IF(Sheet1!L8=temp!L8,"",Sheet1!L8-temp!L8) ->  | M8: =IF(Sheet1!M8=temp!M8,"",Sheet1!M8-temp!M8) -> 0.0007 | N8: =IF(Sheet1!N8=temp!N8,"",Sheet1!N8-temp!N8) ->  | O8: =IF(Sheet1!O8=temp!O8,"",Sheet1!O8-temp!O8) ->  | P8: =IF(Sheet1!P8=temp!P8,"",Sheet1!P8-temp!P8) -> 4e-05 | Q8: =IF(Sheet1!Q8=temp!Q8,"",1/Sheet1!Q8-1/temp!Q8) -> -2 | R8: =IF(Sheet1!R8=temp!R8,"",1/Sheet1!R8-1/temp!R8) -> 13 | S8: =IF(Sheet1!S8=temp!S8,"",1/Sheet1!S8-1/temp!S8) -> -4 | T8: =IF(Sheet1!T8=temp!T8,"",1/Sheet1!T8-1/temp!T8) -> 10 | U8: =IF(Sheet1!U8=temp!U8,"",Sheet1!U8-temp!U8) ->  | V8: =IF(Sheet1!V8=temp!V8,"",Sheet1!V8-temp!V8) -> -0.01
B9: =IF(Sheet1!B9=temp!B9,"",Sheet1!B9-temp!B9) ->  | C9: =IF(Sheet1!C9=temp!C9,"",Sheet1!C9-temp!C9) ->  | D9: =IF(Sheet1!D9=temp!D9,"",Sheet1!D9-temp!D9) -> 3.94 | E9: =IF(Sheet1!E9=temp!E9,"",Sheet1!E9-temp!E9) ->  | F9: =IF(Sheet1!F9=temp!F9,"",Sheet1!F9-temp!F9) -> -0.0139 | G9: =IF(Sheet1!G9=temp!G9,"",Sheet1!G9-temp!G9) -> 0.0016 | H9: =IF(Sheet1!H9=temp!H9,"",Sheet1!H9-temp!H9) -> -0.0104 | I9: =IF(Sheet1!I9=temp!I9,"",Sheet1!I9-temp!I9) -> 0.0012 | J9: =IF(Sheet1!J9=temp!J9,"",Sheet1!J9-temp!J9) ->  | K9: =IF(Sheet1!K9=temp!K9,"",Sheet1!K9-temp!K9) -> 0.03 | L9: =IF(Sheet1!L9=temp!L9,"",Sheet1!L9-temp!L9) ->  | M9: =IF(Sheet1!M9=temp!M9,"",Sheet1!M9-temp!M9) -> -0.0153 | N9: =IF(Sheet1!N9=temp!N9,"",Sheet1!N9-temp!N9) ->  | O9: =IF(Sheet1!O9=temp!O9,"",Sheet1!O9-temp!O9) -> -0.00012 | P9: =IF(Sheet1!P9=temp!P9,"",Sheet1!P9-temp!P9) -> 3e-05 | Q9: =IF(Sheet1!Q9=temp!Q9,"",1/Sheet1!Q9-1/temp!Q9) -> -11 | R9: =IF(Sheet1!R9=temp!R9,"",1/Sheet1!R9-1/temp!R9) -> 13 | S9: =IF(Sheet1!S9=temp!S9,"",1/Sheet1!S9-1/temp!S9) -> -10 | T9: =IF(Sheet1!T9=temp!T9,"",1/Sheet1!T9-1/temp!T9) -> 10 | U9: =IF(Sheet1!U9=temp!U9,"",Sheet1!U9-temp!U9) ->  | V9: =IF(Sheet1!V9=temp!V9,"",Sheet1!V9-temp!V9) -> 
B10: =IF(Sheet1!B10=temp!B10,"",Sheet1!B10-temp!B10) ->  | C10: =IF(Sheet1!C10=temp!C10,"",Sheet1!C10-temp!C10) ->  | D10: =IF(Sheet1!D10=temp!D10,"",Sheet1!D10-temp!D10) -> 3.95 | E10: =IF(Sheet1!E10=temp!E10,"",Sheet1!E10-temp!E10) ->  | F10: =IF(Sheet1!F10=temp!F10,"",Sheet1!F10-temp!F10) -> -0.002 | G10: =IF(Sheet1!G10=temp!G10,"",Sheet1!G10-temp!G10) -> 0.0009 | H10: =IF(Sheet1!H10=temp!H10,"",Sheet1!H10-temp!H10) -> -0.0015 | I10: =IF(Sheet1!I10=temp!I10,"",Sheet1!I10-temp!I10) -> 0.0006 | J10: =IF(Sheet1!J10=temp!J10,"",Sheet1!J10-temp!J10) ->  | K10: =IF(Sheet1!K10=temp!K10,"",Sheet1!K10-temp!K10) ->  | L10: =IF(Sheet1!L10=temp!L10,"",Sheet1!L10-temp!L10) ->  | M10: =IF(Sheet1!M10=temp!M10,"",Sheet1!M10-temp!M10) -> -0.0012 | N10: =IF(Sheet1!N10=temp!N10,"",Sheet1!N10-temp!N10) ->  | O10: =IF(Sheet1!O10=temp!O10,"",Sheet1!O10-temp!O10) -> -0.00016 | P10: =IF(Sheet1!P10=temp!P10,"",Sheet1!P10-temp!P10) -> 4e-05 | Q10: =IF(Sheet1!Q10=temp!Q10,"",1/Sheet1!Q10-1/temp!Q10) -> -10 | R10: =IF(Sheet1!R10=temp!R10,"",1/Sheet1!R10-1/temp!R10) -> 13 | S10: =IF(Sheet1!S10=temp!S10,"",1/Sheet1!S10-1/temp!S10) -> -10 | T10: =IF(Sheet1!T10=temp!T10,"",1/Sheet1!T10-1/temp!T10) -> 10 | U10: =IF(Sheet1!U10=temp!U10,"",Sheet1!U10-temp!U10) ->  | V10: =IF(Sheet1!V10=temp!V10,"",Sheet1!V10-temp!V10) -> 
B11: =IF(Sheet1!B11=temp!B11,"",Sheet1!B11-temp!B11) ->  | C11: =IF(Sheet1!C11=temp!C11,"",Sheet1!C11-temp!C11) ->  | D11: =IF(Sheet1!D11=temp!D11,"",Sheet1!D11-temp!D11) -> 3.95 | E11: =IF(Sheet1!E11=temp!E11,"",Sheet1!E11-temp!E11) ->  | F11: =IF(Sheet1!F11=temp!F11,"",Sheet1!F11-temp!F11) -> 0.0008 | G11: =IF(Sheet1!G11=temp!G11,"",Sheet1!G11-temp!G11) -> 0.0006 | H11: =IF(Sheet1!H11=temp!H11,"",Sheet1!H11-temp!H11) -> 0.0007 | I11: =IF(Sheet1!I11=temp!I11,"",Sheet1!I11-temp!I11) -> 0.0005 | J11: =IF(Sheet1!J11=temp!J11,"",Sheet1!J11-temp!J11) ->  | K11: =IF(Sheet1!K11=temp!K11,"",Sheet1!K11-temp!K11) ->  | L11: =IF(Sheet1!L11=temp!L11,"",Sheet1!L11-temp!L11) ->  | M11: =IF(Sheet1!M11=temp!M11,"",Sheet1!M11-temp!M11) -> -0.0017 | N11: =IF(Sheet1!N11=temp!N11,"",Sheet1!N11-temp!N11) ->  | O11: =IF(Sheet1!O11=temp!O11,"",Sheet1!O11-temp!O11) -> -0.00016 | P11: =IF(Sheet1!P11=temp!P11,"",Sheet1!P11-temp!P11) -> 5e-05 | Q11: =IF(Sheet1!Q11=temp!Q11,"",1/Sheet1!Q11-1/temp!Q11) -> -9 | R11: =IF(Sheet1!R11=temp!R11,"",1/Sheet1!R11-1/temp!R11) -> 13 | S11: =IF(Sheet1!S11=temp!S11,"",1/Sheet1!S11-1/temp!S11) -> -9 | T11: =IF(Sheet1!T11=temp!T11,"",1/Sheet1!T11-1/temp!T11) -> 10 | U11: =IF(Sheet1!U11=temp!U11,"",Sheet1!U11-temp!U11) ->  | V11: =IF(Sheet1!V11=temp!V11,"",Sheet1!V11-temp!V11) -> 
B12: =IF(Sheet1!B12=temp!B12,"",Sheet1!B12-temp!B12) ->  | C12: =IF(Sheet1!C12=temp!C12,"",Sheet1!C12-temp!C12) ->  | D12: =IF(Sheet1!D12=temp!D12,"",Sheet1!D12-temp!D12) -> 3.95 | E12: =IF(Sheet1!E12=temp!E12,"",Sheet1!E12-temp!E12) ->  | F12: =IF(Sheet1!F12=temp!F12,"",Sheet1!F12-temp!F12) -> 0.0016 | G12: =IF(Sheet1!G12=temp!G12,"",Sheet1!G12-temp!G12) -> 0.0006 | H12: =IF(Sheet1!H12=temp!H12,"",Sheet1!H12-temp!H12) -> 0.0013 | I12: =IF(Sheet1!I12=temp!I12,"",Sheet1!I12-temp!I12) -> 0.0004 | J12: =IF(Sheet1!J12=temp!J12,"",Sheet1!J12-temp!J12) ->  | K12: =IF(Sheet1!K12=temp!K12,"",Sheet1!K12-temp!K12) ->  | L12: =IF(Sheet1!L12=temp!L12,"",Sheet1!L12-temp!L12) ->  | M12: =IF(Sheet1!M12=temp!M12,"",Sheet1!M12-temp!M12) ->  | N12: =IF(Sheet1!N12=temp!N12,"",Sheet1!N12-temp!N12) -> 0.0032 | O12: =IF(Sheet1!O12=temp!O12,"",Sheet1!O12-temp!O12) -> -0.00014 | P12: =IF(Sheet1!P12=temp!P12,"",Sheet1!P12-temp!P12) -> 6e-05 | Q12: =IF(Sheet1!Q12=temp!Q12,"",1/Sheet1!Q12-1/temp!Q12) -> -8 | R12: =IF(Sheet1!R12=temp!R12,"",1/Sheet1!R12-1/temp!R12) -> 12 | S12: =IF(Sheet1!S12=temp!S12,"",1/Sheet1!S12-1/temp!S12) -> -7 | T12: =IF(Sheet1!T12=temp!T12,"",1/Sheet1!T12-1/temp!T12) -> 10 | U12: =IF(Sheet1!U12=temp!U12,"",Sheet1!U12-temp!U12) ->  | V12: =IF(Sheet1!V12=temp!V12,"",Sheet1!V12-temp!V12) -> 
B13: =IF(Sheet1!B13=temp!B13,"",Sheet1!B13-temp!B13) ->  | C13: =IF(Sheet1!C13=temp!C13,"",Sheet1!C13-temp!C13) ->  | D13: =IF(Sheet1!D13=temp!D13,"",Sheet1!D13-temp!D13) -> 3.95 | E13: =IF(Sheet1!E13=temp!E13,"",Sheet1!E13-temp!E13) ->  | F13: =IF(Sheet1!F13=temp!F13,"",Sheet1!F13-temp!F13) -> 0.0027 | G13: =IF(Sheet1!G13=temp!G13,"",Sheet1!G13-temp!G13) -> 0.0009 | H13: =IF(Sheet1!H13=temp!H13,"",Sheet1!H13-temp!H13) -> 0.0012 | I13: =IF(Sheet1!I13=temp!I13,"",Sheet1!I13-temp!I13) -> 0.0003 | J13: =IF(Sheet1!J13=temp!J13,"",Sheet1!J13-temp!J13) ->  | K13: =IF(Sheet1!K13=temp!K13,"",Sheet1!K13-temp!K13) ->  | L13: =IF(Sheet1!L13=temp!L13,"",Sheet1!L13-temp!L13) ->  | M13: =IF(Sheet1!M13=temp!M13,"",Sheet1!M13-temp!M13) ->  | N13: =IF(Sheet1!N13=temp!N13,"",Sheet1!N13-temp!N13) -> 0.0001 | O13: =IF(Sheet1!O13=temp!O13,"",Sheet1!O13-temp!O13) -> -0.00014 | P13: =IF(Sheet1!P13=temp!P13,"",Sheet1!P13-temp!P13) -> 7e-05 | Q13: =IF(Sheet1!Q13=temp!Q13,"",1/Sheet1!Q13-1/temp!Q13) -> -6 | R13: =IF(Sheet1!R13=temp!R13,"",1/Sheet1!R13-1/temp!R13) -> 13 | S13: =IF(Sheet1!S13=temp!S13,"",1/Sheet1!S13-1/temp!S13) -> -6 | T13: =IF(Sheet1!T13=temp!T13,"",1/Sheet1!T13-1/temp!T13) -> 10 | U13: =IF(Sheet1!U13=temp!U13,"",Sheet1!U13-temp!U13) ->  | V13: =IF(Sheet1!V13=temp!V13,"",Sheet1!V13-temp!V13) -> 
B14: =IF(Sheet1!B14=temp!B14,"",Sheet1!B14-temp!B14) ->  | C14: =IF(Sheet1!C14=temp!C14,"",Sheet1!C14-temp!C14) ->  | D14: =IF(Sheet1!D14=temp!D14,"",Sheet1!D14-temp!D14) -> 3.95 | E14: =IF(Sheet1!E14=temp!E14,"",Sheet1!E14-temp!E14) ->  | F14: =IF(Sheet1!F14=temp!F14,"",Sheet1!F14-temp!F14) -> 0.0026 | G14: =IF(Sheet1!G14=temp!G14,"",Sheet1!G14-temp!G14) -> 0.0005 | H14: =IF(Sheet1!H14=temp!H14,"",Sheet1!H14-temp!H14) -> 0.0011 | I14: =IF(Sheet1!I14=temp!I14,"",Sheet1!I14-temp!I14) -> 0.0002 | J14: =IF(Sheet1!J14=temp!J14,"",Sheet1!J14-temp!J14) ->  | K14: =IF(Sheet1!K14=temp!K14,"",Sheet1!K14-temp!K14) ->  | L14: =IF(Sheet1!L14=temp!L14,"",Sheet1!L14-temp!L14) ->  | M14: =IF(Sheet1!M14=temp!M14,"",Sheet1!M14-temp!M14) ->  | N14: =IF(Sheet1!N14=temp!N14,"",Sheet1!N14-temp!N14) ->  | O14: =IF(Sheet1!O14=temp!O14,"",Sheet1!O14-temp!O14) -> -0.00013 | P14: =IF(Sheet1!P14=temp!P14,"",Sheet1!P14-temp!P14) -> 7e-05 | Q14: =IF(Sheet1!Q14=temp!Q14,"",1/Sheet1!Q14-1/temp!Q14) -> -5 | R14: =IF(Sheet1!R14=temp!R14,"",1/Sheet1!R14-1/temp!R14) -> 12 | S14: =IF(Sheet1!S14=temp!S14,"",1/Sheet1!S14-1/temp!S14) -> -5 | T14: =IF(Sheet1!T14=temp!T14,"",1/Sheet1!T14-1/temp!T14) -> 10 | U14: =IF(Sheet1!U14=temp!U14,"",Sheet1!U14-temp!U14) ->  | V14: =IF(Sheet1!V14=temp!V14,"",Sheet1!V14-temp!V14) -> 
B15: =IF(Sheet1!B15=temp!B15,"",Sheet1!B15-temp!B15) ->  | C15: =IF(Sheet1!C15=temp!C15,"",Sheet1!C15-temp!C15) ->  | D15: =IF(Sheet1!D15=temp!D15,"",Sheet1!D15-temp!D15) -> 3.95 | E15: =IF(Sheet1!E15=temp!E15,"",Sheet1!E15-temp!E15) ->  | F15: =IF(Sheet1!F15=temp!F15,"",Sheet1!F15-temp!F15) -> 0.0029 | G15: =IF(Sheet1!G15=temp!G15,"",Sheet1!G15-temp!G15) -> 0.0002 | H15: =IF(Sheet1!H15=temp!H15,"",Sheet1!H15-temp!H15) -> 0.0013 | I15: =IF(Sheet1!I15=temp!I15,"",Sheet1!I15-temp!I15) ->  | J15: =IF(Sheet1!J15=temp!J15,"",Sheet1!J15-temp!J15) ->  | K15: =IF(Sheet1!K15=temp!K15,"",Sheet1!K15-temp!K15) -> -0.01 | L15: =IF(Sheet1!L15=temp!L15,"",Sheet1!L15-temp!L15) ->  | M15: =IF(Sheet1!M15=temp!M15,"",Sheet1!M15-temp!M15) ->  | N15: =IF(Sheet1!N15=temp!N15,"",Sheet1!N15-temp!N15) ->  | O15: =IF(Sheet1!O15=temp!O15,"",Sheet1!O15-temp!O15) -> -0.00011 | P15: =IF(Sheet1!P15=temp!P15,"",Sheet1!P15-temp!P15) -> 7e-05 | Q15: =IF(Sheet1!Q15=temp!Q15,"",1/Sheet1!Q15-1/temp!Q15) -> -4 | R15: =IF(Sheet1!R15=temp!R15,"",1/Sheet1!R15-1/temp!R15) -> 11 | S15: =IF(Sheet1!S15=temp!S15,"",1/Sheet1!S15-1/temp!S15) -> -4 | T15: =IF(Sheet1!T15=temp!T15,"",1/Sheet1!T15-1/temp!T15) -> 10 | U15: =IF(Sheet1!U15=temp!U15,"",Sheet1!U15-temp!U15) ->  | V15: =IF(Sheet1!V15=temp!V15,"",Sheet1!V15-temp!V15) -> 
B16: =IF(Sheet1!B16=temp!B16,"",Sheet1!B16-temp!B16) ->  | C16: =IF(Sheet1!C16=temp!C16,"",Sheet1!C16-temp!C16) ->  | D16: =IF(Sheet1!D16=temp!D16,"",Sheet1!D16-temp!D16) -> 1.84 | E16: =IF(Sheet1!E16=temp!E16,"",Sheet1!E16-temp!E16) ->  | F16: =IF(Sheet1!F16=temp!F16,"",Sheet1!F16-temp!F16) -> 0.0026 | G16: =IF(Sheet1!G16=temp!G16,"",Sheet1!G16-temp!G16) -> 0.0001 | H16: =IF(Sheet1!H16=temp!H16,"",Sheet1!H16-temp!H16) -> 0.0008 | I16: =IF(Sheet1!I16=temp!I16,"",Sheet1!I16-temp!I16) ->  | J16: =IF(Sheet1!J16=temp!J16,"",Sheet1!J16-temp!J16) ->  | K16: =IF(Sheet1!K16=temp!K16,"",Sheet1!K16-temp!K16) -> 0.01 | L16: =IF(Sheet1!L16=temp!L16,"",Sheet1!L16-temp!L16) -> -0.01 | M16: =IF(Sheet1!M16=temp!M16,"",Sheet1!M16-temp!M16) ->  | N16: =IF(Sheet1!N16=temp!N16,"",Sheet1!N16-temp!N16) ->  | O16: =IF(Sheet1!O16=temp!O16,"",Sheet1!O16-temp!O16) -> -8e-05 | P16: =IF(Sheet1!P16=temp!P16,"",Sheet1!P16-temp!P16) -> 7e-05 | Q16: =IF(Sheet1!Q16=temp!Q16,"",1/Sheet1!Q16-1/temp!Q16) -> -3 | R16: =IF(Sheet1!R16=temp!R16,"",1/Sheet1!R16-1/temp!R16) -> 11 | S16: =IF(Sheet1!S16=temp!S16,"",1/Sheet1!S16-1/temp!S16) -> -3 | T16: =IF(Sheet1!T16=temp!T16,"",1/Sheet1!T16-1/temp!T16) -> 9 | U16: =IF(Sheet1!U16=temp!U16,"",Sheet1!U16-temp!U16) ->  | V16: =IF(Sheet1!V16=temp!V16,"",Sheet1!V16-temp!V16) -> 
B17: =IF(Sheet1!B17=temp!B17,"",Sheet1!B17-temp!B17) ->  | C17: =IF(Sheet1!C17=temp!C17,"",Sheet1!C17-temp!C17) ->  | D17: =IF(Sheet1!D17=temp!D17,"",Sheet1!D17-temp!D17) -> 3.94 | E17: =IF(Sheet1!E17=temp!E17,"",Sheet1!E17-temp!E17) ->  | F17: =IF(Sheet1!F17=temp!F17,"",Sheet1!F17-temp!F17) -> 0.0018 | G17: =IF(Sheet1!G17=temp!G17,"",Sheet1!G17-temp!G17) -> 0.0003 | H17: =IF(Sheet1!H17=temp!H17,"",Sheet1!H17-temp!H17) -> 0.0005 | I17: =IF(Sheet1!I17=temp!I17,"",Sheet1!I17-temp!I17) -> 0.0002 | J17: =IF(Sheet1!J17=temp!J17,"",Sheet1!J17-temp!J17) ->  | K17: =IF(Sheet1!K17=temp!K17,"",Sheet1!K17-temp!K17) ->  | L17: =IF(Sheet1!L17=temp!L17,"",Sheet1!L17-temp!L17) ->  | M17: =IF(Sheet1!M17=temp!M17,"",Sheet1!M17-temp!M17) ->  | N17: =IF(Sheet1!N17=temp!N17,"",Sheet1!N17-temp!N17) ->  | O17: =IF(Sheet1!O17=temp!O17,"",Sheet1!O17-temp!O17) -> -6e-05 | P17: =IF(Sheet1!P17=temp!P17,"",Sheet1!P17-temp!P17) -> 7e-05 | Q17: =IF(Sheet1!Q17=temp!Q17,"",1/Sheet1!Q17-1/temp!Q17) -> -3 | R17: =IF(Sheet1!R17=temp!R17,"",1/Sheet1!R17-1/temp!R17) -> 12 | S17: =IF(Sheet1!S17=temp!S17,"",1/Sheet1!S17-1/temp!S17) -> -4 | T17: =IF(Sheet1!T17=temp!T17,"",1/Sheet1!T17-1/temp!T17) -> 10 | U17: =IF(Sheet1!U17=temp!U17,"",Sheet1!U17-temp!U17) ->  | V17: =IF(Sheet1!V17=temp!V17,"",Sheet1!V17-temp!V17) -> 
B18: =IF(Sheet1!B18=temp!B18,"",Sheet1!B18-temp!B18) ->  | C18: =IF(Sheet1!C18=temp!C18,"",Sheet1!C18-temp!C18) ->  | D18: =IF(Sheet1!D18=temp!D18,"",Sheet1!D18-temp!D18) -> 3.95 | E18: =IF(Sheet1!E18=temp!E18,"",Sheet1!E18-temp!E18) ->  | F18: =IF(Sheet1!F18=temp!F18,"",Sheet1!F18-temp!F18) -> 0.0014 | G18: =IF(Sheet1!G18=temp!G18,"",Sheet1!G18-temp!G18) ->  | H18: =IF(Sheet1!H18=temp!H18,"",Sheet1!H18-temp!H18) -> 0.0005 | I18: =IF(Sheet1!I18=temp!I18,"",Sheet1!I18-temp!I18) -> -0.0002 | J18: =IF(Sheet1!J18=temp!J18,"",Sheet1!J18-temp!J18) ->  | K18: =IF(Sheet1!K18=temp!K18,"",Sheet1!K18-temp!K18) ->  | L18: =IF(Sheet1!L18=temp!L18,"",Sheet1!L18-temp!L18) -> -0.01 | M18: =IF(Sheet1!M18=temp!M18,"",Sheet1!M18-temp!M18) ->  | N18: =IF(Sheet1!N18=temp!N18,"",Sheet1!N18-temp!N18) ->  | O18: =IF(Sheet1!O18=temp!O18,"",Sheet1!O18-temp!O18) -> -5e-05 | P18: =IF(Sheet1!P18=temp!P18,"",Sheet1!P18-temp!P18) -> 6e-05 | Q18: =IF(Sheet1!Q18=temp!Q18,"",1/Sheet1!Q18-1/temp!Q18) -> -3 | R18: =IF(Sheet1!R18=temp!R18,"",1/Sheet1!R18-1/temp!R18) -> 12 | S18: =IF(Sheet1!S18=temp!S18,"",1/Sheet1!S18-1/temp!S18) -> -3 | T18: =IF(Sheet1!T18=temp!T18,"",1/Sheet1!T18-1/temp!T18) -> 10 | U18: =IF(Sheet1!U18=temp!U18,"",Sheet1!U18-temp!U18) ->  | V18: =IF(Sheet1!V18=temp!V18,"",Sheet1!V18-temp!V18) -> 
B19: =IF(Sheet1!B19=temp!B19,"",Sheet1!B19-temp!B19) ->  | C19: =IF(Sheet1!C19=temp!C19,"",Sheet1!C19-temp!C19) ->  | D19: =IF(Sheet1!D19=temp!D19,"",Sheet1!D19-temp!D19) -> 3.95 | E19: =IF(Sheet1!E19=temp!E19,"",Sheet1!E19-temp!E19) ->  | F19: =IF(Sheet1!F19=temp!F19,"",Sheet1!F19-temp!F19) -> 0.0012 | G19: =IF(Sheet1!G19=temp!G19,"",Sheet1!G19-temp!G19) -> -0.0002 | H19: =IF(Sheet1!H19=temp!H19,"",Sheet1!H19-temp!H19) -> 0.0004 | I19: =IF(Sheet1!I19=temp!I19,"",Sheet1!I19-temp!I19) -> -0.0002 | J19: =IF(Sheet1!J19=temp!J19,"",Sheet1!J19-temp!J19) ->  | K19: =IF(Sheet1!K19=temp!K19,"",Sheet1!K19-temp!K19) ->  | L19: =IF(Sheet1!L19=temp!L19,"",Sheet1!L19-temp!L19) ->  | M19: =IF(Sheet1!M19=temp!M19,"",Sheet1!M19-temp!M19) ->  | N19: =IF(Sheet1!N19=temp!N19,"",Sheet1!N19-temp!N19) ->  | O19: =IF(Sheet1!O19=temp!O19,"",Sheet1!O19-temp!O19) -> -3e-05 | P19: =IF(Sheet1!P19=temp!P19,"",Sheet1!P19-temp!P19) -> 5e-05 | Q19: =IF(Sheet1!Q19=temp!Q19,"",1/Sheet1!Q19-1/temp!Q19) -> -3 | R19: =IF(Sheet1!R19=temp!R19,"",1/Sheet1!R19-1/temp!R19) -> 11 | S19: =IF(Sheet1!S19=temp!S19,"",1/Sheet1!S19-1/temp!S19) -> -4 | T19: =IF(Sheet1!T19=temp!T19,"",1/Sheet1!T19-1/temp!T19) -> 9 | U19: =IF(Sheet1!U19=temp!U19,"",Sheet1!U19-temp!U19) ->  | V19: =IF(Sheet1!V19=temp!V19,"",Sheet1!V19-temp!V19) -> 
B20: =IF(Sheet1!B20=temp!B20,"",Sheet1!B20-temp!B20) ->  | C20: =IF(Sheet1!C20=temp!C20,"",Sheet1!C20-temp!C20) ->  | D20: =IF(Sheet1!D20=temp!D20,"",Sheet1!D20-temp!D20) -> 3.95 | E20: =IF(Sheet1!E20=temp!E20,"",Sheet1!E20-temp!E20) ->  | F20: =IF(Sheet1!F20=temp!F20,"",Sheet1!F20-temp!F20) -> 0.001 | G20: =IF(Sheet1!G20=temp!G20,"",Sheet1!G20-temp!G20) -> -0.0005 | H20: =IF(Sheet1!H20=temp!H20,"",Sheet1!H20-temp!H20) -> 0.0004 | I20: =IF(Sheet1!I20=temp!I20,"",Sheet1!I20-temp!I20) -> -0.0002 | J20: =IF(Sheet1!J20=temp!J20,"",Sheet1!J20-temp!J20) ->  | K20: =IF(Sheet1!K20=temp!K20,"",Sheet1!K20-temp!K20) -> -0.01 | L20: =IF(Sheet1!L20=temp!L20,"",Sheet1!L20-temp!L20) -> 0.01 | M20: =IF(Sheet1!M20=temp!M20,"",Sheet1!M20-temp!M20) ->  | N20: =IF(Sheet1!N20=temp!N20,"",Sheet1!N20-temp!N20) ->  | O20: =IF(Sheet1!O20=temp!O20,"",Sheet1!O20-temp!O20) -> -2e-05 | P20: =IF(Sheet1!P20=temp!P20,"",Sheet1!P20-temp!P20) -> 5e-05 | Q20: =IF(Sheet1!Q20=temp!Q20,"",1/Sheet1!Q20-1/temp!Q20) -> -2 | R20: =IF(Sheet1!R20=temp!R20,"",1/Sheet1!R20-1/temp!R20) -> 11 | S20: =IF(Sheet1!S20=temp!S20,"",1/Sheet1!S20-1/temp!S20) -> -3 | T20: =IF(Sheet1!T20=temp!T20,"",1/Sheet1!T20-1/temp!T20) -> 10 | U20: =IF(Sheet1!U20=temp!U20,"",Sheet1!U20-temp!U20) ->  | V20: =IF(Sheet1!V20=temp!V20,"",Sheet1!V20-temp!V20) -> 
B21: =IF(Sheet1!B21=temp!B21,"",Sheet1!B21-temp!B21) ->  | C21: =IF(Sheet1!C21=temp!C21,"",Sheet1!C21-temp!C21) ->  | D21: =IF(Sheet1!D21=temp!D21,"",Sheet1!D21-temp!D21) -> 3.95 | E21: =IF(Sheet1!E21=temp!E21,"",Sheet1!E21-temp!E21) ->  | F21: =IF(Sheet1!F21=temp!F21,"",Sheet1!F21-temp!F21) -> 0.0006 | G21: =IF(Sheet1!G21=temp!G21,"",Sheet1!G21-temp!G21) -> -0.0005 | H21: =IF(Sheet1!H21=temp!H21,"",Sheet1!H21-temp!H21) -> 0.0002 | I21: =IF(Sheet1!I21=temp!I21,"",Sheet1!I21-temp!I21) -> -0.0002 | J21: =IF(Sheet1!J21=temp!J21,"",Sheet1!J21-temp!J21) ->  | K21: =IF(Sheet1!K21=temp!K21,"",Sheet1!K21-temp!K21) ->  | L21: =IF(Sheet1!L21=temp!L21,"",Sheet1!L21-temp!L21) ->  | M21: =IF(Sheet1!M21=temp!M21,"",Sheet1!M21-temp!M21) ->  | N21: =IF(Sheet1!N21=temp!N21,"",Sheet1!N21-temp!N21) ->  | O21: =IF(Sheet1!O21=temp!O21,"",Sheet1!O21-temp!O21) -> -2e-05 | P21: =IF(Sheet1!P21=temp!P21,"",Sheet1!P21-temp!P21) -> 5e-05 | Q21: =IF(Sheet1!Q21=temp!Q21,"",1/Sheet1!Q21-1/temp!Q21) -> -3 | R21: =IF(Sheet1!R21=temp!R21,"",1/Sheet1!R21-1/temp!R21) -> 11 | S21: =IF(Sheet1!S21=temp!S21,"",1/Sheet1!S21-1/temp!S21) -> -4 | T21: =IF(Sheet1!T21=temp!T21,"",1/Sheet1!T21-1/temp!T21) -> 9 | U21: =IF(Sheet1!U21=temp!U21,"",Sheet1!U21-temp!U21) ->  | V21: =IF(Sheet1!V21=temp!V21,"",Sheet1!V21-temp!V21) -> 
B22: =IF(Sheet1!B22=temp!B22,"",Sheet1!B22-temp!B22) ->  | C22: =IF(Sheet1!C22=temp!C22,"",Sheet1!C22-temp!C22) ->  | D22: =IF(Sheet1!D22=temp!D22,"",Sheet1!D22-temp!D22) -> 3.95 | E22: =IF(Sheet1!E22=temp!E22,"",Sheet1!E22-temp!E22) ->  | F22: =IF(Sheet1!F22=temp!F22,"",Sheet1!F22-temp!F22) -> 0.0004 | G22: =IF(Sheet1!G22=temp!G22,"",Sheet1!G22-temp!G22) -> -0.0007 | H22: =IF(Sheet1!H22=temp!H22,"",Sheet1!H22-temp!H22) -> 0.0001 | I22: =IF(Sheet1!I22=temp!I22,"",Sheet1!I22-temp!I22) -> -0.0004 | J22: =IF(Sheet1!J22=temp!J22,"",Sheet1!J22-temp!J22) ->  | K22: =IF(Sheet1!K22=temp!K22,"",Sheet1!K22-temp!K22) ->  | L22: =IF(Sheet1!L22=temp!L22,"",Sheet1!L22-temp!L22) ->  | M22: =IF(Sheet1!M22=temp!M22,"",Sheet1!M22-temp!M22) ->  | N22: =IF(Sheet1!N22=temp!N22,"",Sheet1!N22-temp!N22) ->  | O22: =IF(Sheet1!O22=temp!O22,"",Sheet1!O22-temp!O22) -> -2e-05 | P22: =IF(Sheet1!P22=temp!P22,"",Sheet1!P22-temp!P22) -> 4e-05 | Q22: =IF(Sheet1!Q22=temp!Q22,"",1/Sheet1!Q22-1/temp!Q22) -> -2 | R22: =IF(Sheet1!R22=temp!R22,"",1/Sheet1!R22-1/temp!R22) -> 11 | S22: =IF(Sheet1!S22=temp!S22,"",1/Sheet1!S22-1/temp!S22) -> -4 | T22: =IF(Sheet1!T22=temp!T22,"",1/Sheet1!T22-1/temp!T22) -> 9 | U22: =IF(Sheet1!U22=temp!U22,"",Sheet1!U22-temp!U22) ->  | V22: =IF(Sheet1!V22=temp!V22,"",Sheet1!V22-temp!V22) -> 
B23: =IF(Sheet1!B23=temp!B23,"",Sheet1!B23-temp!B23) ->  | C23: =IF(Sheet1!C23=temp!C23,"",Sheet1!C23-temp!C23) ->  | D23: =IF(Sheet1!D23=temp!D23,"",Sheet1!D23-temp!D23) -> 3.95 | E23: =IF(Sheet1!E23=temp!E23,"",Sheet1!E23-temp!E23) ->  | F23: =IF(Sheet1!F23=temp!F23,"",Sheet1!F23-temp!F23) -> 0.0003 | G23: =IF(Sheet1!G23=temp!G23,"",Sheet1!G23-temp!G23) -> -0.0009 | H23: =IF(Sheet1!H23=temp!H23,"",Sheet1!H23-temp!H23) -> 0.0001 | I23: =IF(Sheet1!I23=temp!I23,"",Sheet1!I23-temp!I23) -> -0.0004 | J23: =IF(Sheet1!J23=temp!J23,"",Sheet1!J23-temp!J23) ->  | K23: =IF(Sheet1!K23=temp!K23,"",Sheet1!K23-temp!K23) ->  | L23: =IF(Sheet1!L23=temp!L23,"",Sheet1!L23-temp!L23) ->  | M23: =IF(Sheet1!M23=temp!M23,"",Sheet1!M23-temp!M23) ->  | N23: =IF(Sheet1!N23=temp!N23,"",Sheet1!N23-temp!N23) ->  | O23: =IF(Sheet1!O23=temp!O23,"",Sheet1!O23-temp!O23) -> -2e-05 | P23: =IF(Sheet1!P23=temp!P23,"",Sheet1!P23-temp!P23) -> 3e-05 | Q23: =IF(Sheet1!Q23=temp!Q23,"",1/Sheet1!Q23-1/temp!Q23) -> -2 | R23: =IF(Sheet1!R23=temp!R23,"",1/Sheet1!R23-1/temp!R23) -> 12 | S23: =IF(Sheet1!S23=temp!S23,"",1/Sheet1!S23-1/temp!S23) -> -4 | T23: =IF(Sheet1!T23=temp!T23,"",1/Sheet1!T23-1/temp!T23) -> 9 | U23: =IF(Sheet1!U23=temp!U23,"",Sheet1!U23-temp!U23) ->  | V23: =IF(Sheet1!V23=temp!V23,"",Sheet1!V23-temp!V23) -> 
B24: =IF(Sheet1!B24=temp!B24,"",Sheet1!B24-temp!B24) ->  | C24: =IF(Sheet1!C24=temp!C24,"",Sheet1!C24-temp!C24) ->  | D24: =IF(Sheet1!D24=temp!D24,"",Sheet1!D24-temp!D24) -> 3.95 | E24: =IF(Sheet1!E24=temp!E24,"",Sheet1!E24-temp!E24) ->  | F24: =IF(Sheet1!F24=temp!F24,"",Sheet1!F24-temp!F24) -> 0.0003 | G24: =IF(Sheet1!G24=temp!G24,"",Sheet1!G24-temp!G24) -> -0.0009 | H24: =IF(Sheet1!H24=temp!H24,"",Sheet1!H24-temp!H24) -> 0.0001 | I24: =IF(Sheet1!I24=temp!I24,"",Sheet1!I24-temp!I24) -> -0.0005 | J24: =IF(Sheet1!J24=temp!J24,"",Sheet1!J24-temp!J24) ->  | K24: =IF(Sheet1!K24=temp!K24,"",Sheet1!K24-temp!K24) ->  | L24: =IF(Sheet1!L24=temp!L24,"",Sheet1!L24-temp!L24) ->  | M24: =IF(Sheet1!M24=temp!M24,"",Sheet1!M24-temp!M24) ->  | N24: =IF(Sheet1!N24=temp!N24,"",Sheet1!N24-temp!N24) ->  | O24: =IF(Sheet1!O24=temp!O24,"",Sheet1!O24-temp!O24) -> -1e-05 | P24: =IF(Sheet1!P24=temp!P24,"",Sheet1!P24-temp!P24) -> 3e-05 | Q24: =IF(Sheet1!Q24=temp!Q24,"",1/Sheet1!Q24-1/temp!Q24) -> -3 | R24: =IF(Sheet1!R24=temp!R24,"",1/Sheet1!R24-1/temp!R24) -> 11 | S24: =IF(Sheet1!S24=temp!S24,"",1/Sheet1!S24-1/temp!S24) -> -3 | T24: =IF(Sheet1!T24=temp!T24,"",1/Sheet1!T24-1/temp!T24) -> 10 | U24: =IF(Sheet1!U24=temp!U24,"",Sheet1!U24-temp!U24) ->  | V24: =IF(Sheet1!V24=temp!V24,"",Sheet1!V24-temp!V24) -> 
B25: =IF(Sheet1!B25=temp!B25,"",Sheet1!B25-temp!B25) ->  | C25: =IF(Sheet1!C25=temp!C25,"",Sheet1!C25-temp!C25) ->  | D25: =IF(Sheet1!D25=temp!D25,"",Sheet1!D25-temp!D25) -> 3.95 | E25: =IF(Sheet1!E25=temp!E25,"",Sheet1!E25-temp!E25) ->  | F25: =IF(Sheet1!F25=temp!F25,"",Sheet1!F25-temp!F25) -> 0.0002 | G25: =IF(Sheet1!G25=temp!G25,"",Sheet1!G25-temp!G25) -> -0.001 | H25: =IF(Sheet1!H25=temp!H25,"",Sheet1!H25-temp!H25) ->  | I25: =IF(Sheet1!I25=temp!I25,"",Sheet1!I25-temp!I25) -> -0.0004 | J25: =IF(Sheet1!J25=temp!J25,"",Sheet1!J25-temp!J25) ->  | K25: =IF(Sheet1!K25=temp!K25,"",Sheet1!K25-temp!K25) ->  | L25: =IF(Sheet1!L25=temp!L25,"",Sheet1!L25-temp!L25) ->  | M25: =IF(Sheet1!M25=temp!M25,"",Sheet1!M25-temp!M25) ->  | N25: =IF(Sheet1!N25=temp!N25,"",Sheet1!N25-temp!N25) ->  | O25: =IF(Sheet1!O25=temp!O25,"",Sheet1!O25-temp!O25) -> -2e-05 | P25: =IF(Sheet1!P25=temp!P25,"",Sheet1!P25-temp!P25) -> 2e-05 | Q25: =IF(Sheet1!Q25=temp!Q25,"",1/Sheet1!Q25-1/temp!Q25) -> -3 | R25: =IF(Sheet1!R25=temp!R25,"",1/Sheet1!R25-1/temp!R25) -> 11 | S25: =IF(Sheet1!S25=temp!S25,"",1/Sheet1!S25-1/temp!S25) -> -3 | T25: =IF(Sheet1!T25=temp!T25,"",1/Sheet1!T25-1/temp!T25) -> 10 | U25: =IF(Sheet1!U25=temp!U25,"",Sheet1!U25-temp!U25) ->  | V25: =IF(Sheet1!V25=temp!V25,"",Sheet1!V25-temp!V25) -> 
B26: =IF(Sheet1!B26=temp!B26,"",Sheet1!B26-temp!B26) ->  | C26: =IF(Sheet1!C26=temp!C26,"",Sheet1!C26-temp!C26) ->  | D26: =IF(Sheet1!D26=temp!D26,"",Sheet1!D26-temp!D26) -> 3.95 | E26: =IF(Sheet1!E26=temp!E26,"",Sheet1!E26-temp!E26) ->  | F26: =IF(Sheet1!F26=temp!F26,"",Sheet1!F26-temp!F26) -> -0.0001 | G26: =IF(Sheet1!G26=temp!G26,"",Sheet1!G26-temp!G26) -> -0.001 | H26: =IF(Sheet1!H26=temp!H26,"",Sheet1!H26-temp!H26) -> -0.0001 | I26: =IF(Sheet1!I26=temp!I26,"",Sheet1!I26-temp!I26) -> -0.0004 | J26: =IF(Sheet1!J26=temp!J26,"",Sheet1!J26-temp!J26) ->  | K26: =IF(Sheet1!K26=temp!K26,"",Sheet1!K26-temp!K26) ->  | L26: =IF(Sheet1!L26=temp!L26,"",Sheet1!L26-temp!L26) ->  | M26: =IF(Sheet1!M26=temp!M26,"",Sheet1!M26-temp!M26) ->  | N26: =IF(Sheet1!N26=temp!N26,"",Sheet1!N26-temp!N26) ->  | O26: =IF(Sheet1!O26=temp!O26,"",Sheet1!O26-temp!O26) -> -2e-05 | P26: =IF(Sheet1!P26=temp!P26,"",Sheet1!P26-temp!P26) -> 2e-05 | Q26: =IF(Sheet1!Q26=temp!Q26,"",1/Sheet1!Q26-1/temp!Q26) -> -3 | R26: =IF(Sheet1!R26=temp!R26,"",1/Sheet1!R26-1/temp!R26) -> 11 | S26: =IF(Sheet1!S26=temp!S26,"",1/Sheet1!S26-1/temp!S26) -> -3 | T26: =IF(Sheet1!T26=temp!T26,"",1/Sheet1!T26-1/temp!T26) -> 9 | U26: =IF(Sheet1!U26=temp!U26,"",Sheet1!U26-temp!U26) ->  | V26: =IF(Sheet1!V26=temp!V26,"",Sheet1!V26-temp!V26) -> 
B27: =IF(Sheet1!B27=temp!B27,"",Sheet1!B27-temp!B27) ->  | C27: =IF(Sheet1!C27=temp!C27,"",Sheet1!C27-temp!C27) ->  | D27: =IF(Sheet1!D27=temp!D27,"",Sheet1!D27-temp!D27) -> 3.95 | E27: =IF(Sheet1!E27=temp!E27,"",Sheet1!E27-temp!E27) ->  | F27: =IF(Sheet1!F27=temp!F27,"",Sheet1!F27-temp!F27) -> -0.0001 | G27: =IF(Sheet1!G27=temp!G27,"",Sheet1!G27-temp!G27) -> -0.0009 | H27: =IF(Sheet1!H27=temp!H27,"",Sheet1!H27-temp!H27) ->  | I27: =IF(Sheet1!I27=temp!I27,"",Sheet1!I27-temp!I27) -> -0.0004 | J27: =IF(Sheet1!J27=temp!J27,"",Sheet1!J27-temp!J27) ->  | K27: =IF(Sheet1!K27=temp!K27,"",Sheet1!K27-temp!K27) ->  | L27: =IF(Sheet1!L27=temp!L27,"",Sheet1!L27-temp!L27) ->  | M27: =IF(Sheet1!M27=temp!M27,"",Sheet1!M27-temp!M27) ->  | N27: =IF(Sheet1!N27=temp!N27,"",Sheet1!N27-temp!N27) ->  | O27: =IF(Sheet1!O27=temp!O27,"",Sheet1!O27-temp!O27) -> -2e-05 | P27: =IF(Sheet1!P27=temp!P27,"",Sheet1!P27-temp!P27) -> 1e-05 | Q27: =IF(Sheet1!Q27=temp!Q27,"",1/Sheet1!Q27-1/temp!Q27) -> -3 | R27: =IF(Sheet1!R27=temp!R27,"",1/Sheet1!R27-1/temp!R27) -> 11 | S27: =IF(Sheet1!S27=temp!S27,"",1/Sheet1!S27-1/temp!S27) -> -4 | T27: =IF(Sheet1!T27=temp!T27,"",1/Sheet1!T27-1/temp!T27) -> 10 | U27: =IF(Sheet1!U27=temp!U27,"",Sheet1!U27-temp!U27) ->  | V27: =IF(Sheet1!V27=temp!V27,"",Sheet1!V27-temp!V27) -> 
B28: =IF(Sheet1!B28=temp!B28,"",Sheet1!B28-temp!B28) ->  | C28: =IF(Sheet1!C28=temp!C28,"",Sheet1!C28-temp!C28) ->  | D28: =IF(Sheet1!D28=temp!D28,"",Sheet1!D28-temp!D28) -> 3.95 | E28: =IF(Sheet1!E28=temp!E28,"",Sheet1!E28-temp!E28) ->  | F28: =IF(Sheet1!F28=temp!F28,"",Sheet1!F28-temp!F28) ->  | G28: =IF(Sheet1!G28=temp!G28,"",Sheet1!G28-temp!G28) -> -0.001 | H28: =IF(Sheet1!H28=temp!H28,"",Sheet1!H28-temp!H28) -> 0.0001 | I28: =IF(Sheet1!I28=temp!I28,"",Sheet1!I28-temp!I28) -> -0.0005 | J28: =IF(Sheet1!J28=temp!J28,"",Sheet1!J28-temp!J28) ->  | K28: =IF(Sheet1!K28=temp!K28,"",Sheet1!K28-temp!K28) ->  | L28: =IF(Sheet1!L28=temp!L28,"",Sheet1!L28-temp!L28) ->  | M28: =IF(Sheet1!M28=temp!M28,"",Sheet1!M28-temp!M28) ->  | N28: =IF(Sheet1!N28=temp!N28,"",Sheet1!N28-temp!N28) ->  | O28: =IF(Sheet1!O28=temp!O28,"",Sheet1!O28-temp!O28) -> -2e-05 | P28: =IF(Sheet1!P28=temp!P28,"",Sheet1!P28-temp!P28) -> 1e-05 | Q28: =IF(Sheet1!Q28=temp!Q28,"",1/Sheet1!Q28-1/temp!Q28) -> -3 | R28: =IF(Sheet1!R28=temp!R28,"",1/Sheet1!R28-1/temp!R28) -> 10 | S28: =IF(Sheet1!S28=temp!S28,"",1/Sheet1!S28-1/temp!S28) -> -4 | T28: =IF(Sheet1!T28=temp!T28,"",1/Sheet1!T28-1/temp!T28) -> 9 | U28: =IF(Sheet1!U28=temp!U28,"",Sheet1!U28-temp!U28) ->  | V28: =IF(Sheet1!V28=temp!V28,"",Sheet1!V28-temp!V28) -> 
B29: =IF(Sheet1!B29=temp!B29,"",Sheet1!B29-temp!B29) ->  | C29: =IF(Sheet1!C29=temp!C29,"",Sheet1!C29-temp!C29) ->  | D29: =IF(Sheet1!D29=temp!D29,"",Sheet1!D29-temp!D29) -> 3.95 | E29: =IF(Sheet1!E29=temp!E29,"",Sheet1!E29-temp!E29) ->  | F29: =IF(Sheet1!F29=temp!F29,"",Sheet1!F29-temp!F29) -> 0.0002 | G29: =IF(Sheet1!G29=temp!G29,"",Sheet1!G29-temp!G29) -> -0.0011 | H29: =IF(Sheet1!H29=temp!H29,"",Sheet1!H29-temp!H29) -> 0.0002 | I29: =IF(Sheet1!I29=temp!I29,"",Sheet1!I29-temp!I29) -> -0.0005 | J29: =IF(Sheet1!J29=temp!J29,"",Sheet1!J29-temp!J29) ->  | K29: =IF(Sheet1!K29=temp!K29,"",Sheet1!K29-temp!K29) ->  | L29: =IF(Sheet1!L29=temp!L29,"",Sheet1!L29-temp!L29) ->  | M29: =IF(Sheet1!M29=temp!M29,"",Sheet1!M29-temp!M29) ->  | N29: =IF(Sheet1!N29=temp!N29,"",Sheet1!N29-temp!N29) ->  | O29: =IF(Sheet1!O29=temp!O29,"",Sheet1!O29-temp!O29) -> -3e-05 | P29: =IF(Sheet1!P29=temp!P29,"",Sheet1!P29-temp!P29) -> 1e-05 | Q29: =IF(Sheet1!Q29=temp!Q29,"",1/Sheet1!Q29-1/temp!Q29) -> -2 | R29: =IF(Sheet1!R29=temp!R29,"",1/Sheet1!R29-1/temp!R29) -> 10 | S29: =IF(Sheet1!S29=temp!S29,"",1/Sheet1!S29-1/temp!S29) -> -3 | T29: =IF(Sheet1!T29=temp!T29,"",1/Sheet1!T29-1/temp!T29) -> 9 | U29: =IF(Sheet1!U29=temp!U29,"",Sheet1!U29-temp!U29) ->  | V29: =IF(Sheet1!V29=temp!V29,"",Sheet1!V29-temp!V29) -> 
B30: =IF(Sheet1!B30=temp!B30,"",Sheet1!B30-temp!B30) ->  | C30: =IF(Sheet1!C30=temp!C30,"",Sheet1!C30-temp!C30) ->  | D30: =IF(Sheet1!D30=temp!D30,"",Sheet1!D30-temp!D30) -> 3.95 | E30: =IF(Sheet1!E30=temp!E30,"",Sheet1!E30-temp!E30) ->  | F30: =IF(Sheet1!F30=temp!F30,"",Sheet1!F30-temp!F30) -> 0.0006 | G30: =IF(Sheet1!G30=temp!G30,"",Sheet1!G30-temp!G30) -> -0.0015 | H30: =IF(Sheet1!H30=temp!H30,"",Sheet1!H30-temp!H30) -> 0.0004 | I30: =IF(Sheet1!I30=temp!I30,"",Sheet1!I30-temp!I30) -> -0.0008 | J30: =IF(Sheet1!J30=temp!J30,"",Sheet1!J30-temp!J30) ->  | K30: =IF(Sheet1!K30=temp!K30,"",Sheet1!K30-temp!K30) ->  | L30: =IF(Sheet1!L30=temp!L30,"",Sheet1!L30-temp!L30) ->  | M30: =IF(Sheet1!M30=temp!M30,"",Sheet1!M30-temp!M30) ->  | N30: =IF(Sheet1!N30=temp!N30,"",Sheet1!N30-temp!N30) ->  | O30: =IF(Sheet1!O30=temp!O30,"",Sheet1!O30-temp!O30) -> -2e-05 | P30: =IF(Sheet1!P30=temp!P30,"",Sheet1!P30-temp!P30) -> 1e-05 | Q30: =IF(Sheet1!Q30=temp!Q30,"",1/Sheet1!Q30-1/temp!Q30) -> -2 | R30: =IF(Sheet1!R30=temp!R30,"",1/Sheet1!R30-1/temp!R30) -> 9 | S30: =IF(Sheet1!S30=temp!S30,"",1/Sheet1!S30-1/temp!S30) -> -3 | T30: =IF(Sheet1!T30=temp!T30,"",1/Sheet1!T30-1/temp!T30) -> 9 | U30: =IF(Sheet1!U30=temp!U30,"",Sheet1!U30-temp!U30) ->  | V30: =IF(Sheet1!V30=temp!V30,"",Sheet1!V30-temp!V30) -> 
B31: =IF(Sheet1!B31=temp!B31,"",Sheet1!B31-temp!B31) ->  | C31: =IF(Sheet1!C31=temp!C31,"",Sheet1!C31-temp!C31) ->  | D31: =IF(Sheet1!D31=temp!D31,"",Sheet1!D31-temp!D31) -> 1.84 | E31: =IF(Sheet1!E31=temp!E31,"",Sheet1!E31-temp!E31) ->  | F31: =IF(Sheet1!F31=temp!F31,"",Sheet1!F31-temp!F31) ->  | G31: =IF(Sheet1!G31=temp!G31,"",Sheet1!G31-temp!G31) -> -0.0006 | H31: =IF(Sheet1!H31=temp!H31,"",Sheet1!H31-temp!H31) -> -0.0003 | I31: =IF(Sheet1!I31=temp!I31,"",Sheet1!I31-temp!I31) -> 0.0002 | J31: =IF(Sheet1!J31=temp!J31,"",Sheet1!J31-temp!J31) ->  | K31: =IF(Sheet1!K31=temp!K31,"",Sheet1!K31-temp!K31) ->  | L31: =IF(Sheet1!L31=temp!L31,"",Sheet1!L31-temp!L31) ->  | M31: =IF(Sheet1!M31=temp!M31,"",Sheet1!M31-temp!M31) ->  | N31: =IF(Sheet1!N31=temp!N31,"",Sheet1!N31-temp!N31) ->  | O31: =IF(Sheet1!O31=temp!O31,"",Sheet1!O31-temp!O31) -> -2e-05 | P31: =IF(Sheet1!P31=temp!P31,"",Sheet1!P31-temp!P31) -> 1e-05 | Q31: =IF(Sheet1!Q31=temp!Q31,"",1/Sheet1!Q31-1/temp!Q31) -> -3 | R31: =IF(Sheet1!R31=temp!R31,"",1/Sheet1!R31-1/temp!R31) -> 10 | S31: =IF(Sheet1!S31=temp!S31,"",1/Sheet1!S31-1/temp!S31) -> -4 | T31: =IF(Sheet1!T31=temp!T31,"",1/Sheet1!T31-1/temp!T31) -> 9 | U31: =IF(Sheet1!U31=temp!U31,"",Sheet1!U31-temp!U31) ->  | V31: =IF(Sheet1!V31=temp!V31,"",Sheet1!V31-temp!V31) -> 
B32: =IF(Sheet1!B32=temp!B32,"",Sheet1!B32-temp!B32) ->  | C32: =IF(Sheet1!C32=temp!C32,"",Sheet1!C32-temp!C32) ->  | D32: =IF(Sheet1!D32=temp!D32,"",Sheet1!D32-temp!D32) -> 3.94 | E32: =IF(Sheet1!E32=temp!E32,"",Sheet1!E32-temp!E32) ->  | F32: =IF(Sheet1!F32=temp!F32,"",Sheet1!F32-temp!F32) -> 0.0012 | G32: =IF(Sheet1!G32=temp!G32,"",Sheet1!G32-temp!G32) -> 0.0005 | H32: =IF(Sheet1!H32=temp!H32,"",Sheet1!H32-temp!H32) -> 0.0012 | I32: =IF(Sheet1!I32=temp!I32,"",Sheet1!I32-temp!I32) -> 0.0006 | J32: =IF(Sheet1!J32=temp!J32,"",Sheet1!J32-temp!J32) ->  | K32: =IF(Sheet1!K32=temp!K32,"",Sheet1!K32-temp!K32) -> -0.01 | L32: =IF(Sheet1!L32=temp!L32,"",Sheet1!L32-temp!L32) ->  | M32: =IF(Sheet1!M32=temp!M32,"",Sheet1!M32-temp!M32) ->  | N32: =IF(Sheet1!N32=temp!N32,"",Sheet1!N32-temp!N32) ->  | O32: =IF(Sheet1!O32=temp!O32,"",Sheet1!O32-temp!O32) -> -2e-05 | P32: =IF(Sheet1!P32=temp!P32,"",Sheet1!P32-temp!P32) -> 1e-05 | Q32: =IF(Sheet1!Q32=temp!Q32,"",1/Sheet1!Q32-1/temp!Q32) -> -2 | R32: =IF(Sheet1!R32=temp!R32,"",1/Sheet1!R32-1/temp!R32) -> 11 | S32: =IF(Sheet1!S32=temp!S32,"",1/Sheet1!S32-1/temp!S32) -> -2 | T32: =IF(Sheet1!T32=temp!T32,"",1/Sheet1!T32-1/temp!T32) -> 10 | U32: =IF(Sheet1!U32=temp!U32,"",Sheet1!U32-temp!U32) ->  | V32: =IF(Sheet1!V32=temp!V32,"",Sheet1!V32-temp!V32) -> 
B33: =IF(Sheet1!B33=temp!B33,"",Sheet1!B33-temp!B33) ->  | C33: =IF(Sheet1!C33=temp!C33,"",Sheet1!C33-temp!C33) ->  | D33: =IF(Sheet1!D33=temp!D33,"",Sheet1!D33-temp!D33) -> 3.94 | E33: =IF(Sheet1!E33=temp!E33,"",Sheet1!E33-temp!E33) ->  | F33: =IF(Sheet1!F33=temp!F33,"",Sheet1!F33-temp!F33) -> 0.0017 | G33: =IF(Sheet1!G33=temp!G33,"",Sheet1!G33-temp!G33) -> -0.0006 | H33: =IF(Sheet1!H33=temp!H33,"",Sheet1!H33-temp!H33) -> 0.0008 | I33: =IF(Sheet1!I33=temp!I33,"",Sheet1!I33-temp!I33) -> -0.0009 | J33: =IF(Sheet1!J33=temp!J33,"",Sheet1!J33-temp!J33) ->  | K33: =IF(Sheet1!K33=temp!K33,"",Sheet1!K33-temp!K33) ->  | L33: =IF(Sheet1!L33=temp!L33,"",Sheet1!L33-temp!L33) ->  | M33: =IF(Sheet1!M33=temp!M33,"",Sheet1!M33-temp!M33) ->  | N33: =IF(Sheet1!N33=temp!N33,"",Sheet1!N33-temp!N33) ->  | O33: =IF(Sheet1!O33=temp!O33,"",Sheet1!O33-temp!O33) -> -2e-05 | P33: =IF(Sheet1!P33=temp!P33,"",Sheet1!P33-temp!P33) -> 1e-05 | Q33: =IF(Sheet1!Q33=temp!Q33,"",1/Sheet1!Q33-1/temp!Q33) -> -2 | R33: =IF(Sheet1!R33=temp!R33,"",1/Sheet1!R33-1/temp!R33) -> 10 | S33: =IF(Sheet1!S33=temp!S33,"",1/Sheet1!S33-1/temp!S33) -> -1 | T33: =IF(Sheet1!T33=temp!T33,"",1/Sheet1!T33-1/temp!T33) -> 10 | U33: =IF(Sheet1!U33=temp!U33,"",Sheet1!U33-temp!U33) ->  | V33: =IF(Sheet1!V33=temp!V33,"",Sheet1!V33-temp!V33) -> 
B34: =IF(Sheet1!B34=temp!B34,"",Sheet1!B34-temp!B34) ->  | C34: =IF(Sheet1!C34=temp!C34,"",Sheet1!C34-temp!C34) ->  | D34: =IF(Sheet1!D34=temp!D34,"",Sheet1!D34-temp!D34) -> 3.94 | E34: =IF(Sheet1!E34=temp!E34,"",Sheet1!E34-temp!E34) ->  | F34: =IF(Sheet1!F34=temp!F34,"",Sheet1!F34-temp!F34) -> 0.0021 | G34: =IF(Sheet1!G34=temp!G34,"",Sheet1!G34-temp!G34) -> -0.0012 | H34: =IF(Sheet1!H34=temp!H34,"",Sheet1!H34-temp!H34) -> 0.0009 | I34: =IF(Sheet1!I34=temp!I34,"",Sheet1!I34-temp!I34) -> -0.0006 | J34: =IF(Sheet1!J34=temp!J34,"",Sheet1!J34-temp!J34) ->  | K34: =IF(Sheet1!K34=temp!K34,"",Sheet1!K34-temp!K34) ->  | L34: =IF(Sheet1!L34=temp!L34,"",Sheet1!L34-temp!L34) ->  | M34: =IF(Sheet1!M34=temp!M34,"",Sheet1!M34-temp!M34) ->  | N34: =IF(Sheet1!N34=temp!N34,"",Sheet1!N34-temp!N34) ->  | O34: =IF(Sheet1!O34=temp!O34,"",Sheet1!O34-temp!O34) -> -1e-05 | P34: =IF(Sheet1!P34=temp!P34,"",Sheet1!P34-temp!P34) -> 1e-05 | Q34: =IF(Sheet1!Q34=temp!Q34,"",1/Sheet1!Q34-1/temp!Q34) -> -1 | R34: =IF(Sheet1!R34=temp!R34,"",1/Sheet1!R34-1/temp!R34) -> 10 | S34: =IF(Sheet1!S34=temp!S34,"",1/Sheet1!S34-1/temp!S34) ->  | T34: =IF(Sheet1!T34=temp!T34,"",1/Sheet1!T34-1/temp!T34) -> 10 | U34: =IF(Sheet1!U34=temp!U34,"",Sheet1!U34-temp!U34) ->  | V34: =IF(Sheet1!V34=temp!V34,"",Sheet1!V34-temp!V34) -> 
B35: =IF(Sheet1!B35=temp!B35,"",Sheet1!B35-temp!B35) ->  | C35: =IF(Sheet1!C35=temp!C35,"",Sheet1!C35-temp!C35) ->  | D35: =IF(Sheet1!D35=temp!D35,"",Sheet1!D35-temp!D35) -> 3.94 | E35: =IF(Sheet1!E35=temp!E35,"",Sheet1!E35-temp!E35) ->  | F35: =IF(Sheet1!F35=temp!F35,"",Sheet1!F35-temp!F35) -> 0.0023 | G35: =IF(Sheet1!G35=temp!G35,"",Sheet1!G35-temp!G35) -> -0.0017 | H35: =IF(Sheet1!H35=temp!H35,"",Sheet1!H35-temp!H35) -> 0.0011 | I35: =IF(Sheet1!I35=temp!I35,"",Sheet1!I35-temp!I35) -> -0.0007 | J35: =IF(Sheet1!J35=temp!J35,"",Sheet1!J35-temp!J35) ->  | K35: =IF(Sheet1!K35=temp!K35,"",Sheet1!K35-temp!K35) ->  | L35: =IF(Sheet1!L35=temp!L35,"",Sheet1!L35-temp!L35) ->  | M35: =IF(Sheet1!M35=temp!M35,"",Sheet1!M35-temp!M35) ->  | N35: =IF(Sheet1!N35=temp!N35,"",Sheet1!N35-temp!N35) ->  | O35: =IF(Sheet1!O35=temp!O35,"",Sheet1!O35-temp!O35) ->  | P35: =IF(Sheet1!P35=temp!P35,"",Sheet1!P35-temp!P35) -> 2e-05 | Q35: =IF(Sheet1!Q35=temp!Q35,"",1/Sheet1!Q35-1/temp!Q35) ->  | R35: =IF(Sheet1!R35=temp!R35,"",1/Sheet1!R35-1/temp!R35) -> 9 | S35: =IF(Sheet1!S35=temp!S35,"",1/Sheet1!S35-1/temp!S35) -> 2 | T35: =IF(Sheet1!T35=temp!T35,"",1/Sheet1!T35-1/temp!T35) -> 10 | U35: =IF(Sheet1!U35=temp!U35,"",Sheet1!U35-temp!U35) ->  | V35: =IF(Sheet1!V35=temp!V35,"",Sheet1!V35-temp!V35) -> 
B36: =IF(Sheet1!B36=temp!B36,"",Sheet1!B36-temp!B36) ->  | C36: =IF(Sheet1!C36=temp!C36,"",Sheet1!C36-temp!C36) ->  | D36: =IF(Sheet1!D36=temp!D36,"",Sheet1!D36-temp!D36) -> 3.94 | E36: =IF(Sheet1!E36=temp!E36,"",Sheet1!E36-temp!E36) ->  | F36: =IF(Sheet1!F36=temp!F36,"",Sheet1!F36-temp!F36) -> 0.0026 | G36: =IF(Sheet1!G36=temp!G36,"",Sheet1!G36-temp!G36) -> -0.0017 | H36: =IF(Sheet1!H36=temp!H36,"",Sheet1!H36-temp!H36) -> 0.0012 | I36: =IF(Sheet1!I36=temp!I36,"",Sheet1!I36-temp!I36) -> -0.0007 | J36: =IF(Sheet1!J36=temp!J36,"",Sheet1!J36-temp!J36) ->  | K36: =IF(Sheet1!K36=temp!K36,"",Sheet1!K36-temp!K36) ->  | L36: =IF(Sheet1!L36=temp!L36,"",Sheet1!L36-temp!L36) ->  | M36: =IF(Sheet1!M36=temp!M36,"",Sheet1!M36-temp!M36) ->  | N36: =IF(Sheet1!N36=temp!N36,"",Sheet1!N36-temp!N36) ->  | O36: =IF(Sheet1!O36=temp!O36,"",Sheet1!O36-temp!O36) -> 1e-05 | P36: =IF(Sheet1!P36=temp!P36,"",Sheet1!P36-temp!P36) -> 1e-05 | Q36: =IF(Sheet1!Q36=temp!Q36,"",1/Sheet1!Q36-1/temp!Q36) ->  | R36: =IF(Sheet1!R36=temp!R36,"",1/Sheet1!R36-1/temp!R36) -> 8 | S36: =IF(Sheet1!S36=temp!S36,"",1/Sheet1!S36-1/temp!S36) -> 3 | T36: =IF(Sheet1!T36=temp!T36,"",1/Sheet1!T36-1/temp!T36) -> 9 | U36: =IF(Sheet1!U36=temp!U36,"",Sheet1!U36-temp!U36) ->  | V36: =IF(Sheet1!V36=temp!V36,"",Sheet1!V36-temp!V36) -> 
B37: =IF(Sheet1!B37=temp!B37,"",Sheet1!B37-temp!B37) ->  | C37: =IF(Sheet1!C37=temp!C37,"",Sheet1!C37-temp!C37) ->  | D37: =IF(Sheet1!D37=temp!D37,"",Sheet1!D37-temp!D37) -> 3.94 | E37: =IF(Sheet1!E37=temp!E37,"",Sheet1!E37-temp!E37) ->  | F37: =IF(Sheet1!F37=temp!F37,"",Sheet1!F37-temp!F37) -> 0.003 | G37: =IF(Sheet1!G37=temp!G37,"",Sheet1!G37-temp!G37) -> -0.0018 | H37: =IF(Sheet1!H37=temp!H37,"",Sheet1!H37-temp!H37) -> 0.0014 | I37: =IF(Sheet1!I37=temp!I37,"",Sheet1!I37-temp!I37) -> -0.0009 | J37: =IF(Sheet1!J37=temp!J37,"",Sheet1!J37-temp!J37) ->  | K37: =IF(Sheet1!K37=temp!K37,"",Sheet1!K37-temp!K37) ->  | L37: =IF(Sheet1!L37=temp!L37,"",Sheet1!L37-temp!L37) ->  | M37: =IF(Sheet1!M37=temp!M37,"",Sheet1!M37-temp!M37) ->  | N37: =IF(Sheet1!N37=temp!N37,"",Sheet1!N37-temp!N37) ->  | O37: =IF(Sheet1!O37=temp!O37,"",Sheet1!O37-temp!O37) -> 1e-05 | P37: =IF(Sheet1!P37=temp!P37,"",Sheet1!P37-temp!P37) -> 1e-05 | Q37: =IF(Sheet1!Q37=temp!Q37,"",1/Sheet1!Q37-1/temp!Q37) -> 1 | R37: =IF(Sheet1!R37=temp!R37,"",1/Sheet1!R37-1/temp!R37) -> 7 | S37: =IF(Sheet1!S37=temp!S37,"",1/Sheet1!S37-1/temp!S37) -> 5 | T37: =IF(Sheet1!T37=temp!T37,"",1/Sheet1!T37-1/temp!T37) -> 9 | U37: =IF(Sheet1!U37=temp!U37,"",Sheet1!U37-temp!U37) ->  | V37: =IF(Sheet1!V37=temp!V37,"",Sheet1!V37-temp!V37) -> 
B38: =IF(Sheet1!B38=temp!B38,"",Sheet1!B38-temp!B38) ->  | C38: =IF(Sheet1!C38=temp!C38,"",Sheet1!C38-temp!C38) ->  | D38: =IF(Sheet1!D38=temp!D38,"",Sheet1!D38-temp!D38) -> 3.94 | E38: =IF(Sheet1!E38=temp!E38,"",Sheet1!E38-temp!E38) ->  | F38: =IF(Sheet1!F38=temp!F38,"",Sheet1!F38-temp!F38) -> 0.0034 | G38: =IF(Sheet1!G38=temp!G38,"",Sheet1!G38-temp!G38) -> -0.0021 | H38: =IF(Sheet1!H38=temp!H38,"",Sheet1!H38-temp!H38) -> 0.0016 | I38: =IF(Sheet1!I38=temp!I38,"",Sheet1!I38-temp!I38) -> -0.001 | J38: =IF(Sheet1!J38=temp!J38,"",Sheet1!J38-temp!J38) ->  | K38: =IF(Sheet1!K38=temp!K38,"",Sheet1!K38-temp!K38) ->  | L38: =IF(Sheet1!L38=temp!L38,"",Sheet1!L38-temp!L38) ->  | M38: =IF(Sheet1!M38=temp!M38,"",Sheet1!M38-temp!M38) ->  | N38: =IF(Sheet1!N38=temp!N38,"",Sheet1!N38-temp!N38) ->  | O38: =IF(Sheet1!O38=temp!O38,"",Sheet1!O38-temp!O38) -> 2e-05 | P38: =IF(Sheet1!P38=temp!P38,"",Sheet1!P38-temp!P38) -> 1e-05 | Q38: =IF(Sheet1!Q38=temp!Q38,"",1/Sheet1!Q38-1/temp!Q38) -> 4 | R38: =IF(Sheet1!R38=temp!R38,"",1/Sheet1!R38-1/temp!R38) -> 6 | S38: =IF(Sheet1!S38=temp!S38,"",1/Sheet1!S38-1/temp!S38) -> 8 | T38: =IF(Sheet1!T38=temp!T38,"",1/Sheet1!T38-1/temp!T38) -> 8 | U38: =IF(Sheet1!U38=temp!U38,"",Sheet1!U38-temp!U38) ->  | V38: =IF(Sheet1!V38=temp!V38,"",Sheet1!V38-temp!V38) -> 
B39: =IF(Sheet1!B39=temp!B39,"",Sheet1!B39-temp!B39) ->  | C39: =IF(Sheet1!C39=temp!C39,"",Sheet1!C39-temp!C39) ->  | D39: =IF(Sheet1!D39=temp!D39,"",Sheet1!D39-temp!D39) -> 3.94 | E39: =IF(Sheet1!E39=temp!E39,"",Sheet1!E39-temp!E39) ->  | F39: =IF(Sheet1!F39=temp!F39,"",Sheet1!F39-temp!F39) -> 0.0037 | G39: =IF(Sheet1!G39=temp!G39,"",Sheet1!G39-temp!G39) -> -0.0025 | H39: =IF(Sheet1!H39=temp!H39,"",Sheet1!H39-temp!H39) -> 0.0017 | I39: =IF(Sheet1!I39=temp!I39,"",Sheet1!I39-temp!I39) -> -0.0011 | J39: =IF(Sheet1!J39=temp!J39,"",Sheet1!J39-temp!J39) ->  | K39: =IF(Sheet1!K39=temp!K39,"",Sheet1!K39-temp!K39) ->  | L39: =IF(Sheet1!L39=temp!L39,"",Sheet1!L39-temp!L39) -> 0.04 | M39: =IF(Sheet1!M39=temp!M39,"",Sheet1!M39-temp!M39) ->  | N39: =IF(Sheet1!N39=temp!N39,"",Sheet1!N39-temp!N39) ->  | O39: =IF(Sheet1!O39=temp!O39,"",Sheet1!O39-temp!O39) -> 3e-05 | P39: =IF(Sheet1!P39=temp!P39,"",Sheet1!P39-temp!P39) -> 1e-05 | Q39: =IF(Sheet1!Q39=temp!Q39,"",1/Sheet1!Q39-1/temp!Q39) -> 6 | R39: =IF(Sheet1!R39=temp!R39,"",1/Sheet1!R39-1/temp!R39) -> 3 | S39: =IF(Sheet1!S39=temp!S39,"",1/Sheet1!S39-1/temp!S39) -> 11 | T39: =IF(Sheet1!T39=temp!T39,"",1/Sheet1!T39-1/temp!T39) -> 7 | U39: =IF(Sheet1!U39=temp!U39,"",Sheet1!U39-temp!U39) ->  | V39: =IF(Sheet1!V39=temp!V39,"",Sheet1!V39-temp!V39) -> 
B40: =IF(Sheet1!B40=temp!B40,"",Sheet1!B40-temp!B40) ->  | C40: =IF(Sheet1!C40=temp!C40,"",Sheet1!C40-temp!C40) ->  | D40: =IF(Sheet1!D40=temp!D40,"",Sheet1!D40-temp!D40) -> 3.94 | E40: =IF(Sheet1!E40=temp!E40,"",Sheet1!E40-temp!E40) ->  | F40: =IF(Sheet1!F40=temp!F40,"",Sheet1!F40-temp!F40) -> 0.0039 | G40: =IF(Sheet1!G40=temp!G40,"",Sheet1!G40-temp!G40) -> -0.0027 | H40: =IF(Sheet1!H40=temp!H40,"",Sheet1!H40-temp!H40) -> 0.0016 | I40: =IF(Sheet1!I40=temp!I40,"",Sheet1!I40-temp!I40) -> -0.0013 | J40: =IF(Sheet1!J40=temp!J40,"",Sheet1!J40-temp!J40) ->  | K40: =IF(Sheet1!K40=temp!K40,"",Sheet1!K40-temp!K40) ->  | L40: =IF(Sheet1!L40=temp!L40,"",Sheet1!L40-temp!L40) -> 0.05 | M40: =IF(Sheet1!M40=temp!M40,"",Sheet1!M40-temp!M40) ->  | N40: =IF(Sheet1!N40=temp!N40,"",Sheet1!N40-temp!N40) ->  | O40: =IF(Sheet1!O40=temp!O40,"",Sheet1!O40-temp!O40) -> 3e-05 | P40: =IF(Sheet1!P40=temp!P40,"",Sheet1!P40-temp!P40) -> 1e-05 | Q40: =IF(Sheet1!Q40=temp!Q40,"",1/Sheet1!Q40-1/temp!Q40) -> 9 | R40: =IF(Sheet1!R40=temp!R40,"",1/Sheet1!R40-1/temp!R40) -> 1 | S40: =IF(Sheet1!S40=temp!S40,"",1/Sheet1!S40-1/temp!S40) -> 16 | T40: =IF(Sheet1!T40=temp!T40,"",1/Sheet1!T40-1/temp!T40) -> 7 | U40: =IF(Sheet1!U40=temp!U40,"",Sheet1!U40-temp!U40) ->  | V40: =IF(Sheet1!V40=temp!V40,"",Sheet1!V40-temp!V40) -> 
B41: =IF(Sheet1!B41=temp!B41,"",Sheet1!B41-temp!B41) ->  | C41: =IF(Sheet1!C41=temp!C41,"",Sheet1!C41-temp!C41) ->  | D41: =IF(Sheet1!D41=temp!D41,"",Sheet1!D41-temp!D41) -> 3.94 | E41: =IF(Sheet1!E41=temp!E41,"",Sheet1!E41-temp!E41) ->  | F41: =IF(Sheet1!F41=temp!F41,"",Sheet1!F41-temp!F41) -> 0.0034 | G41: =IF(Sheet1!G41=temp!G41,"",Sheet1!G41-temp!G41) -> -0.0037 | H41: =IF(Sheet1!H41=temp!H41,"",Sheet1!H41-temp!H41) -> 0.0012 | I41: =IF(Sheet1!I41=temp!I41,"",Sheet1!I41-temp!I41) -> -0.0019 | J41: =IF(Sheet1!J41=temp!J41,"",Sheet1!J41-temp!J41) ->  | K41: =IF(Sheet1!K41=temp!K41,"",Sheet1!K41-temp!K41) -> 0.01 | L41: =IF(Sheet1!L41=temp!L41,"",Sheet1!L41-temp!L41) -> -0.1 | M41: =IF(Sheet1!M41=temp!M41,"",Sheet1!M41-temp!M41) ->  | N41: =IF(Sheet1!N41=temp!N41,"",Sheet1!N41-temp!N41) ->  | O41: =IF(Sheet1!O41=temp!O41,"",Sheet1!O41-temp!O41) -> 4e-05 | P41: =IF(Sheet1!P41=temp!P41,"",Sheet1!P41-temp!P41) -> 1e-05 | Q41: =IF(Sheet1!Q41=temp!Q41,"",1/Sheet1!Q41-1/temp!Q41) -> 12 | R41: =IF(Sheet1!R41=temp!R41,"",1/Sheet1!R41-1/temp!R41) -> -3 | S41: =IF(Sheet1!S41=temp!S41,"",1/Sheet1!S41-1/temp!S41) -> 20 | T41: =IF(Sheet1!T41=temp!T41,"",1/Sheet1!T41-1/temp!T41) -> -46 | U41: =IF(Sheet1!U41=temp!U41,"",Sheet1!U41-temp!U41) ->  | V41: =IF(Sheet1!V41=temp!V41,"",Sheet1!V41-temp!V41) -> 
B42: =IF(Sheet1!B42=temp!B42,"",Sheet1!B42-temp!B42) ->  | C42: =IF(Sheet1!C42=temp!C42,"",Sheet1!C42-temp!C42) ->  | D42: =IF(Sheet1!D42=temp!D42,"",Sheet1!D42-temp!D42) -> 3.94 | E42: =IF(Sheet1!E42=temp!E42,"",Sheet1!E42-temp!E42) ->  | F42: =IF(Sheet1!F42=temp!F42,"",Sheet1!F42-temp!F42) -> -0.0005 | G42: =IF(Sheet1!G42=temp!G42,"",Sheet1!G42-temp!G42) -> -0.0008 | H42: =IF(Sheet1!H42=temp!H42,"",Sheet1!H42-temp!H42) -> -0.0017 | I42: =IF(Sheet1!I42=temp!I42,"",Sheet1!I42-temp!I42) -> -0.0007 | J42: =IF(Sheet1!J42=temp!J42,"",Sheet1!J42-temp!J42) ->  | K42: =IF(Sheet1!K42=temp!K42,"",Sheet1!K42-temp!K42) -> -0.01 | L42: =IF(Sheet1!L42=temp!L42,"",Sheet1!L42-temp!L42) -> 0.05 | M42: =IF(Sheet1!M42=temp!M42,"",Sheet1!M42-temp!M42) ->  | N42: =IF(Sheet1!N42=temp!N42,"",Sheet1!N42-temp!N42) ->  | O42: =IF(Sheet1!O42=temp!O42,"",Sheet1!O42-temp!O42) -> 4e-05 | P42: =IF(Sheet1!P42=temp!P42,"",Sheet1!P42-temp!P42) -> 1e-05 | Q42: =IF(Sheet1!Q42=temp!Q42,"",1/Sheet1!Q42-1/temp!Q42) -> 9 | R42: =IF(Sheet1!R42=temp!R42,"",1/Sheet1!R42-1/temp!R42) -> -6 | S42: =IF(Sheet1!S42=temp!S42,"",1/Sheet1!S42-1/temp!S42) -> 15 | T42: =IF(Sheet1!T42=temp!T42,"",1/Sheet1!T42-1/temp!T42) -> -62 | U42: =IF(Sheet1!U42=temp!U42,"",Sheet1!U42-temp!U42) ->  | V42: =IF(Sheet1!V42=temp!V42,"",Sheet1!V42-temp!V42) -> 
B43: =IF(Sheet1!B43=temp!B43,"",Sheet1!B43-temp!B43) ->  | C43: =IF(Sheet1!C43=temp!C43,"",Sheet1!C43-temp!C43) ->  | D43: =IF(Sheet1!D43=temp!D43,"",Sheet1!D43-temp!D43) ->  | E43: =IF(Sheet1!E43=temp!E43,"",Sheet1!E43-temp!E43) ->  | F43: =IF(Sheet1!F43=temp!F43,"",Sheet1!F43-temp!F43) -> -0.0091 | G43: =IF(Sheet1!G43=temp!G43,"",Sheet1!G43-temp!G43) -> 0.0015 | H43: =IF(Sheet1!H43=temp!H43,"",Sheet1!H43-temp!H43) -> -0.0147 | I43: =IF(Sheet1!I43=temp!I43,"",Sheet1!I43-temp!I43) -> 0.0024 | J43: =IF(Sheet1!J43=temp!J43,"",Sheet1!J43-temp!J43) ->  | K43: =IF(Sheet1!K43=temp!K43,"",Sheet1!K43-temp!K43) -> -0.01 | L43: =IF(Sheet1!L43=temp!L43,"",Sheet1!L43-temp!L43) -> -0.05 | M43: =IF(Sheet1!M43=temp!M43,"",Sheet1!M43-temp!M43) ->  | N43: =IF(Sheet1!N43=temp!N43,"",Sheet1!N43-temp!N43) ->  | O43: =IF(Sheet1!O43=temp!O43,"",Sheet1!O43-temp!O43) -> 4e-05 | P43: =IF(Sheet1!P43=temp!P43,"",Sheet1!P43-temp!P43) -> 1e-05 | Q43: =IF(Sheet1!Q43=temp!Q43,"",1/Sheet1!Q43-1/temp!Q43) -> -18 | R43: =IF(Sheet1!R43=temp!R43,"",1/Sheet1!R43-1/temp!R43) -> 1 | S43: =IF(Sheet1!S43=temp!S43,"",1/Sheet1!S43-1/temp!S43) -> -17 | T43: =IF(Sheet1!T43=temp!T43,"",1/Sheet1!T43-1/temp!T43) -> 12 | U43: =IF(Sheet1!U43=temp!U43,"",Sheet1!U43-temp!U43) ->  | V43: =IF(Sheet1!V43=temp!V43,"",Sheet1!V43-temp!V43) -> 
B44: =IF(Sheet1!B44=temp!B44,"",Sheet1!B44-temp!B44) ->  | C44: =IF(Sheet1!C44=temp!C44,"",Sheet1!C44-temp!C44) ->  | D44: =IF(Sheet1!D44=temp!D44,"",Sheet1!D44-temp!D44) ->  | E44: =IF(Sheet1!E44=temp!E44,"",Sheet1!E44-temp!E44) ->  | F44: =IF(Sheet1!F44=temp!F44,"",Sheet1!F44-temp!F44) -> -0.0649 | G44: =IF(Sheet1!G44=temp!G44,"",Sheet1!G44-temp!G44) -> -0.006 | H44: =IF(Sheet1!H44=temp!H44,"",Sheet1!H44-temp!H44) -> -0.0146 | I44: =IF(Sheet1!I44=temp!I44,"",Sheet1!I44-temp!I44) -> -0.0064 | J44: =IF(Sheet1!J44=temp!J44,"",Sheet1!J44-temp!J44) ->  | K44: =IF(Sheet1!K44=temp!K44,"",Sheet1!K44-temp!K44) ->  | L44: =IF(Sheet1!L44=temp!L44,"",Sheet1!L44-temp!L44) -> -0.01 | M44: =IF(Sheet1!M44=temp!M44,"",Sheet1!M44-temp!M44) ->  | N44: =IF(Sheet1!N44=temp!N44,"",Sheet1!N44-temp!N44) ->  | O44: =IF(Sheet1!O44=temp!O44,"",Sheet1!O44-temp!O44) -> 5e-05 | P44: =IF(Sheet1!P44=temp!P44,"",Sheet1!P44-temp!P44) -> 1e-05 | Q44: =IF(Sheet1!Q44=temp!Q44,"",1/Sheet1!Q44-1/temp!Q44) ->  | R44: =IF(Sheet1!R44=temp!R44,"",1/Sheet1!R44-1/temp!R44) ->  | S44: =IF(Sheet1!S44=temp!S44,"",1/Sheet1!S44-1/temp!S44) ->  | T44: =IF(Sheet1!T44=temp!T44,"",1/Sheet1!T44-1/temp!T44) -> 6 | U44: =IF(Sheet1!U44=temp!U44,"",Sheet1!U44-temp!U44) ->  | V44: =IF(Sheet1!V44=temp!V44,"",Sheet1!V44-temp!V44) -> 
B45: =IF(Sheet1!B45=temp!B45,"",Sheet1!B45-temp!B45) ->  | C45: =IF(Sheet1!C45=temp!C45,"",Sheet1!C45-temp!C45) ->  | D45: =IF(Sheet1!D45=temp!D45,"",Sheet1!D45-temp!D45) ->  | E45: =IF(Sheet1!E45=temp!E45,"",Sheet1!E45-temp!E45) ->  | F45: =IF(Sheet1!F45=temp!F45,"",Sheet1!F45-temp!F45) -> 0.0044 | G45: =IF(Sheet1!G45=temp!G45,"",Sheet1!G45-temp!G45) -> 0.0004 | H45: =IF(Sheet1!H45=temp!H45,"",Sheet1!H45-temp!H45) -> 0.0017 | I45: =IF(Sheet1!I45=temp!I45,"",Sheet1!I45-temp!I45) -> 0.0002 | J45: =IF(Sheet1!J45=temp!J45,"",Sheet1!J45-temp!J45) ->  | K45: =IF(Sheet1!K45=temp!K45,"",Sheet1!K45-temp!K45) ->  | L45: =IF(Sheet1!L45=temp!L45,"",Sheet1!L45-temp!L45) ->  | M45: =IF(Sheet1!M45=temp!M45,"",Sheet1!M45-temp!M45) ->  | N45: =IF(Sheet1!N45=temp!N45,"",Sheet1!N45-temp!N45) ->  | O45: =IF(Sheet1!O45=temp!O45,"",Sheet1!O45-temp!O45) -> 6e-05 | P45: =IF(Sheet1!P45=temp!P45,"",Sheet1!P45-temp!P45) -> 1e-05 | Q45: =IF(Sheet1!Q45=temp!Q45,"",1/Sheet1!Q45-1/temp!Q45) ->  | R45: =IF(Sheet1!R45=temp!R45,"",1/Sheet1!R45-1/temp!R45) ->  | S45: =IF(Sheet1!S45=temp!S45,"",1/Sheet1!S45-1/temp!S45) ->  | T45: =IF(Sheet1!T45=temp!T45,"",1/Sheet1!T45-1/temp!T45) ->  | U45: =IF(Sheet1!U45=temp!U45,"",Sheet1!U45-temp!U45) ->  | V45: =IF(Sheet1!V45=temp!V45,"",Sheet1!V45-temp!V45) -> 
B46: =IF(Sheet1!B46=temp!B46,"",Sheet1!B46-temp!B46) ->  | C46: =IF(Sheet1!C46=temp!C46,"",Sheet1!C46-temp!C46) ->  | D46: =IF(Sheet1!D46=temp!D46,"",Sheet1!D46-temp!D46) ->  | E46: =IF(Sheet1!E46=temp!E46,"",Sheet1!E46-temp!E46) ->  | F46: =IF(Sheet1!F46=temp!F46,"",Sheet1!F46-temp!F46) ->  | G46: =IF(Sheet1!G46=temp!G46,"",Sheet1!G46-temp!G46) ->  | H46: =IF(Sheet1!H46=temp!H46,"",Sheet1!H46-temp!H46) ->  | I46: =IF(Sheet1!I46=temp!I46,"",Sheet1!I46-temp!I46) ->  | J46: =IF(Sheet1!J46=temp!J46,"",Sheet1!J46-temp!J46) ->  | K46: =IF(Sheet1!K46=temp!K46,"",Sheet1!K46-temp!K46) -> 0.01 | L46: =IF(Sheet1!L46=temp!L46,"",Sheet1!L46-temp!L46) -> 0.03 | M46: =IF(Sheet1!M46=temp!M46,"",Sheet1!M46-temp!M46) ->  | N46: =IF(Sheet1!N46=temp!N46,"",Sheet1!N46-temp!N46) ->  | O46: =IF(Sheet1!O46=temp!O46,"",Sheet1!O46-temp!O46) -> 6e-05 | P46: =IF(Sheet1!P46=temp!P46,"",Sheet1!P46-temp!P46) -> 1e-05 | Q46: =IF(Sheet1!Q46=temp!Q46,"",1/Sheet1!Q46-1/temp!Q46) ->  | R46: =IF(Sheet1!R46=temp!R46,"",1/Sheet1!R46-1/temp!R46) ->  | S46: =IF(Sheet1!S46=temp!S46,"",1/Sheet1!S46-1/temp!S46) ->  | T46: =IF(Sheet1!T46=temp!T46,"",1/Sheet1!T46-1/temp!T46) ->  | U46: =IF(Sheet1!U46=temp!U46,"",Sheet1!U46-temp!U46) ->  | V46: =IF(Sheet1!V46=temp!V46,"",Sheet1!V46-temp!V46) -> 
B47: =IF(Sheet1!B47=temp!B47,"",Sheet1!B47-temp!B47) ->  | C47: =IF(Sheet1!C47=temp!C47,"",Sheet1!C47-temp!C47) ->  | D47: =IF(Sheet1!D47=temp!D47,"",Sheet1!D47-temp!D47) ->  | E47: =IF(Sheet1!E47=temp!E47,"",Sheet1!E47-temp!E47) ->  | F47: =IF(Sheet1!F47=temp!F47,"",Sheet1!F47-temp!F47) -> -0.0649 | G47: =IF(Sheet1!G47=temp!G47,"",Sheet1!G47-temp!G47) -> 0.0093 | H47: =IF(Sheet1!H47=temp!H47,"",Sheet1!H47-temp!H47) -> -0.0146 | I47: =IF(Sheet1!I47=temp!I47,"",Sheet1!I47-temp!I47) -> 0.0055 | J47: =IF(Sheet1!J47=temp!J47,"",Sheet1!J47-temp!J47) ->  | K47: =IF(Sheet1!K47=temp!K47,"",Sheet1!K47-temp!K47) ->  | L47: =IF(Sheet1!L47=temp!L47,"",Sheet1!L47-temp!L47) ->  | M47: =IF(Sheet1!M47=temp!M47,"",Sheet1!M47-temp!M47) ->  | N47: =IF(Sheet1!N47=temp!N47,"",Sheet1!N47-temp!N47) ->  | O47: =IF(Sheet1!O47=temp!O47,"",Sheet1!O47-temp!O47) -> -4e-05 | P47: =IF(Sheet1!P47=temp!P47,"",Sheet1!P47-temp!P47) -> -0.00019 | Q47: =IF(Sheet1!Q47=temp!Q47,"",1/Sheet1!Q47-1/temp!Q47) -> -3 | R47: =IF(Sheet1!R47=temp!R47,"",1/Sheet1!R47-1/temp!R47) -> 13 | S47: =IF(Sheet1!S47=temp!S47,"",1/Sheet1!S47-1/temp!S47) ->  | T47: =IF(Sheet1!T47=temp!T47,"",1/Sheet1!T47-1/temp!T47) -> 9 | U47: =IF(Sheet1!U47=temp!U47,"",Sheet1!U47-temp!U47) ->  | V47: =IF(Sheet1!V47=temp!V47,"",Sheet1!V47-temp!V47) -> 
B48: =IF(Sheet1!B48=temp!B48,"",Sheet1!B48-temp!B48) ->  | C48: =IF(Sheet1!C48=temp!C48,"",Sheet1!C48-temp!C48) ->  | D48: =IF(Sheet1!D48=temp!D48,"",Sheet1!D48-temp!D48) ->  | E48: =IF(Sheet1!E48=temp!E48,"",Sheet1!E48-temp!E48) ->  | F48: =IF(Sheet1!F48=temp!F48,"",Sheet1!F48-temp!F48) ->  | G48: =IF(Sheet1!G48=temp!G48,"",Sheet1!G48-temp!G48) ->  | H48: =IF(Sheet1!H48=temp!H48,"",Sheet1!H48-temp!H48) ->  | I48: =IF(Sheet1!I48=temp!I48,"",Sheet1!I48-temp!I48) ->  | J48: =IF(Sheet1!J48=temp!J48,"",Sheet1!J48-temp!J48) ->  | K48: =IF(Sheet1!K48=temp!K48,"",Sheet1!K48-temp!K48) ->  | L48: =IF(Sheet1!L48=temp!L48,"",Sheet1!L48-temp!L48) ->  | M48: =IF(Sheet1!M48=temp!M48,"",Sheet1!M48-temp!M48) ->  | N48: =IF(Sheet1!N48=temp!N48,"",Sheet1!N48-temp!N48) ->  | O48: =IF(Sheet1!O48=temp!O48,"",Sheet1!O48-temp!O48) ->  | P48: =IF(Sheet1!P48=temp!P48,"",Sheet1!P48-temp!P48) ->  | Q48: =IF(Sheet1!Q48=temp!Q48,"",1/Sheet1!Q48-1/temp!Q48) ->  | R48: =IF(Sheet1!R48=temp!R48,"",1/Sheet1!R48-1/temp!R48) ->  | S48: =IF(Sheet1!S48=temp!S48,"",1/Sheet1!S48-1/temp!S48) ->  | T48: =IF(Sheet1!T48=temp!T48,"",1/Sheet1!T48-1/temp!T48) ->  | U48: =IF(Sheet1!U48=temp!U48,"",Sheet1!U48-temp!U48) ->  | V48: =IF(Sheet1!V48=temp!V48,"",Sheet1!V48-temp!V48) -> 
B49: =IF(Sheet1!B49=temp!B49,"",Sheet1!B49-temp!B49) ->  | C49: =IF(Sheet1!C49=temp!C49,"",Sheet1!C49-temp!C49) ->  | D49: =IF(Sheet1!D49=temp!D49,"",Sheet1!D49-temp!D49) ->  | E49: =IF(Sheet1!E49=temp!E49,"",Sheet1!E49-temp!E49) ->  | F49: =IF(Sheet1!F49=temp!F49,"",Sheet1!F49-temp!F49) ->  | G49: =IF(Sheet1!G49=temp!G49,"",Sheet1!G49-temp!G49) ->  | H49: =IF(Sheet1!H49=temp!H49,"",Sheet1!H49-temp!H49) ->  | I49: =IF(Sheet1!I49=temp!I49,"",Sheet1!I49-temp!I49) ->  | J49: =IF(Sheet1!J49=temp!J49,"",Sheet1!J49-temp!J49) ->  | K49: =IF(Sheet1!K49=temp!K49,"",Sheet1!K49-temp!K49) ->  | L49: =IF(Sheet1!L49=temp!L49,"",Sheet1!L49-temp!L49) ->  | M49: =IF(Sheet1!M49=temp!M49,"",Sheet1!M49-temp!M49) ->  | N49: =IF(Sheet1!N49=temp!N49,"",Sheet1!N49-temp!N49) ->  | O49: =IF(Sheet1!O49=temp!O49,"",Sheet1!O49-temp!O49) ->  | P49: =IF(Sheet1!P49=temp!P49,"",Sheet1!P49-temp!P49) ->  | Q49: =IF(Sheet1!Q49=temp!Q49,"",1/Sheet1!Q49-1/temp!Q49) ->  | R49: =IF(Sheet1!R49=temp!R49,"",1/Sheet1!R49-1/temp!R49) ->  | S49: =IF(Sheet1!S49=temp!S49,"",1/Sheet1!S49-1/temp!S49) ->  | T49: =IF(Sheet1!T49=temp!T49,"",1/Sheet1!T49-1/temp!T49) ->  | U49: =IF(Sheet1!U49=temp!U49,"",Sheet1!U49-temp!U49) ->  | V49: =IF(Sheet1!V49=temp!V49,"",Sheet1!V49-temp!V49) -> 
B50: =IF(Sheet1!B50=temp!B50,"",Sheet1!B50-temp!B50) ->  | C50: =IF(Sheet1!C50=temp!C50,"",Sheet1!C50-temp!C50) ->  | D50: =IF(Sheet1!D50=temp!D50,"",Sheet1!D50-temp!D50) ->  | E50: =IF(Sheet1!E50=temp!E50,"",Sheet1!E50-temp!E50) ->  | F50: =IF(Sheet1!F50=temp!F50,"",Sheet1!F50-temp!F50) ->  | G50: =IF(Sheet1!G50=temp!G50,"",Sheet1!G50-temp!G50) ->  | H50: =IF(Sheet1!H50=temp!H50,"",Sheet1!H50-temp!H50) ->  | I50: =IF(Sheet1!I50=temp!I50,"",Sheet1!I50-temp!I50) ->  | J50: =IF(Sheet1!J50=temp!J50,"",Sheet1!J50-temp!J50) ->  | K50: =IF(Sheet1!K50=temp!K50,"",Sheet1!K50-temp!K50) ->  | L50: =IF(Sheet1!L50=temp!L50,"",Sheet1!L50-temp!L50) ->  | M50: =IF(Sheet1!M50=temp!M50,"",Sheet1!M50-temp!M50) ->  | N50: =IF(Sheet1!N50=temp!N50,"",Sheet1!N50-temp!N50) ->  | O50: =IF(Sheet1!O50=temp!O50,"",Sheet1!O50-temp!O50) ->  | P50: =IF(Sheet1!P50=temp!P50,"",Sheet1!P50-temp!P50) ->  | Q50: =IF(Sheet1!Q50=temp!Q50,"",1/Sheet1!Q50-1/temp!Q50) ->  | R50: =IF(Sheet1!R50=temp!R50,"",1/Sheet1!R50-1/temp!R50) ->  | S50: =IF(Sheet1!S50=temp!S50,"",1/Sheet1!S50-1/temp!S50) ->  | T50: =IF(Sheet1!T50=temp!T50,"",1/Sheet1!T50-1/temp!T50) ->  | U50: =IF(Sheet1!U50=temp!U50,"",Sheet1!U50-temp!U50) ->  | V50: =IF(Sheet1!V50=temp!V50,"",Sheet1!V50-temp!V50) -> 
Q51: =IF(Sheet1!Q51=temp!Q51,"",1/Sheet1!Q51-1/temp!Q51) ->  | R51: =IF(Sheet1!R51=temp!R51,"",1/Sheet1!R51-1/temp!R51) ->  | S51: =IF(Sheet1!S51=temp!S51,"",1/Sheet1!S51-1/temp!S51) ->  | T51: =IF(Sheet1!T51=temp!T51,"",1/Sheet1!T51-1/temp!T51) -> 
Q52: =IF(Sheet1!Q52=temp!Q52,"",1/Sheet1!Q52-1/temp!Q52) ->  | R52: =IF(Sheet1!R52=temp!R52,"",1/Sheet1!R52-1/temp!R52) ->  | S52: =IF(Sheet1!S52=temp!S52,"",1/Sheet1!S52-1/temp!S52) ->  | T52: =IF(Sheet1!T52=temp!T52,"",1/Sheet1!T52-1/temp!T52) -> 
Q53: =IF(Sheet1!Q53=temp!Q53,"",1/Sheet1!Q53-1/temp!Q53) ->  | R53: =IF(Sheet1!R53=temp!R53,"",1/Sheet1!R53-1/temp!R53) ->  | S53: =IF(Sheet1!S53=temp!S53,"",1/Sheet1!S53-1/temp!S53) ->  | T53: =IF(Sheet1!T53=temp!T53,"",1/Sheet1!T53-1/temp!T53) -> 
